Cogmind - Beta 12 X4 @@@ ROGUE MODE // 2023.01.14 @ 13:20:45 Player: Decinym Result: Destroyed by Architect with Modified Sigix Sheargun Performance ------------- Evolutions (9) 4500 Regions Visited (34) 6800 Robots Destroyed (520) 2600 Value Destroyed (29173) 29173 Prototype IDs (320) 6400 Alien Tech Used (8) 1600 Bonus (44179) 44179 TOTAL SCORE: 95252 Bonus ------- High Alert Combat Kills 4999 Follower Combat Kills 2459 Entered Garrisons 400 Network Hubs Disabled 400 Aligned with FarCom 300 Met Imprinter 300 Destroyed Z-Imprinter 1000 Triggered Deep Caves Wall 500 Exposed GOLEM Chamber 500 Met Zhirov 300 Met Warlord at Base 500 MAIN.C Attacked Warlord 500 Warlord Defense Kills 2146 Built Enhanced Grunts 300 A7 Reached Mainframe 300 Met R17 at Cetus 500 Used Core Reset Matrix 3000 Met R17 at Research 2000 Met Warlord at Research 2000 Destroyed MAIN.C Guards 500 Met MAIN.C 5000 Destroyed MAIN.C Shell 5000 Destroyed MAIN.C 10000 Met Warlord at Command 2000 Met Architect 300 Destroyed A8 300 Destroyed A6 400 Destroyed A5 500 Friendly Fire -2225 Cogmind --------- Core Integrity 0/1600 Matter 161/300 Energy 597/840 System Corruption 1% Temperature Cool (0) Movement Immobile (Siege) Location -1/Access_0 Parts ------- > --- POWER (3) -------- Zero-point Reactor Vortex Chain Reactor > --- PROPULSION (6) --- Experimental Biometal Heavy Treads Experimental Biometal Heavy Treads Enhanced Armored Heavy Treads > --- UTILITY (12) ----- Experimental Cooling System Huge Storage Unit Advanced Terrain Scan Processor Assembled Combat Suite Experimental Targeting Computer Precision Matter Filter Advanced Weapon Cycler Assembled Alloy Armor Experimental Powered Armor Heavy Regenerative Plating Advanced Force Field > --- WEAPON (4) ------- Multirail Multirail Heavy Hardcell Cannon > --- INVENTORY (25) --- Improved Quantum Reactor Experimental Power Amplifier Experimental Cooling System Advanced Energy Well (500) Zionite Biocell (600) Advanced Matter Compressor (208) Long-range Terrain Scanner Graphene Brace Long-range Tractor Beam Transdimensional Reconstructor Subatomic Replicator HERF Cannon Multirail Multirail Fusion Bomb Launcher Improved Plasma Cutter Peak State ------------ > --- POWER ------------ Zero-point Reactor Vortex Chain Reactor > --- PROPULSION ------- Experimental Biometal Heavy Treads Experimental Biometal Heavy Treads Enhanced Armored Heavy Treads > --- UTILITY ---------- Experimental Cooling System Huge Storage Unit Assembled Biocell Array Assembled Combat Suite Precision Matter Filter Improved Weapon Cycler Assembled Alloy Armor Experimental Powered Armor SHELL Armor Advanced Force Field > --- WEAPON ----------- Multirail Multirail Multirail Multirail > --- INVENTORY -------- Improved Quantum Reactor Enhanced Armored Heavy Treads Experimental Power Amplifier Experimental Cooling System Advanced Energy Well Experimental Energy Well Zionite Biocell Long-range Terrain Scanner Advanced Terrain Scan Processor Experimental Targeting Computer Improved Weapon Cycler Experimental Weapon Shielding Graphene Brace Advanced Force Field Long-range Tractor Beam Transdimensional Reconstructor Transdimensional Reconstructor Integrity Redistributor Subatomic Replicator HERF Cannon Improved Matter Neutralizer Multirail Fusion Bomb Launcher Improved Plasma Cutter [Rating: 259] Favorites ----------- Power Assembled Flux Generator Engine Ion Engine Power Core Reinforced Fission Core Reactor Assembled Flux Generator Propulsion Enhanced Biometal Leg Treads Experimental Biometal Heavy Treads Leg Enhanced Biometal Leg Wheel Armored Wheel Hover Unit Cooled Gravmag System Utility Huge Storage Unit Device Assembled Combat Suite Storage Huge Storage Unit Processor Experimental Targeting Computer Hackware Hacking Suite Protection Assembled Alloy Armor Artifact Core Physics Calibrator Weapon Assembled Focal Cannon Energy Gun Advanced Beam Rifle Energy Cannon Assembled Focal Cannon Ballistic Gun Multirail Ballistic Cannon Heavy Hardcell Cannon Launcher Smartbomb Launcher Special Weapon Improved Plasma Cutter Slashing Weapon Master Tearclaws Build | -11 -10 -10 -10 -9 -8 -8 -7 -7 -7 -7 -6 -6 -6 -6 -6 -6 -6 -5 -5 -5 -5 -4 -4 -4 -4 -4 -3 -3 -3 -3 -2 -1 -1 -1 ------- Run | Scr Mat Min Exi Min Mat Gar Fac Low Zio Dee Pro Fac Ext Cet Arc Hub Gar Fac Upp Upp Zhi Pro Fac Upp Upp War Pro Res Qua Sec Res Acc Com Ac0 Slots Evolved 18 | . . . . . 4 . 2 . . . . 2 . . . . . 2 . . . . 2 . . . . 2 . . 2 2 . . Power 2 | . . . . . . . . . . . . 1 . . . . . . . . . . . . . . . . . . 1 . . . Propulsion 4 | . . . . . 1 . 1 . . . . . . . . . . . . . . . 1 . . . . 1 . . . . . . Utility 10 | . . . . . 3 . 1 . . . . 1 . . . . . 2 . . . . 1 . . . . 1 . . 1 . . . Weapon 2 | . . . . . . . . . . . . . . . . . . . . . . . . . . . . . . . . 2 . . Parts Attached 440 | . 9 2 21 2 29 11 19 2 14 30 3 3 6 5 14 11 5 3 1 1 26 8 12 1 6 7 . 13 21 30 13 17 53 42 Power 18 | . 1 1 2 . 2 1 2 . . 4 . . . . . . . . . . . . . . . 1 . . . . 1 . 3 . Engine 3 | . . 1 . . 1 . 1 . . . . . . . . . . . . . . . . . . . . . . . . . . . Core 8 | . 1 . 2 . 1 1 1 . . 2 . . . . . . . . . . . . . . . . . . . . . . . . Reactor 7 | . . . . . . . . . . 2 . . . . . . . . . . . . . . . 1 . . . . 1 . 3 . Propulsion 70 | . 3 . 5 . 10 4 4 . 1 3 . . 2 2 2 6 . . . . 2 4 1 . 1 . . 3 6 3 5 . 3 . Treads 42 | . 3 . 3 . 8 4 3 . 1 . . . . 2 2 1 . . . . . . . . . . . . 6 3 3 . 3 . Leg 22 | . . . 2 . 1 . . . . 3 . . 2 . . 5 . . . . 2 2 1 . 1 . . 3 . . . . . . Wheel 2 | . . . . . 1 . 1 . . . . . . . . . . . . . . . . . . . . . . . . . . . Hover 4 | . . . . . . . . . . . . . . . . . . . . . . 2 . . . . . . . . 2 . . . Flight . | . . . . . . . . . . . . . . . . . . . . . . . . . . . . . . . . . . . Utility 252 | . 3 1 5 . 8 2 5 2 9 18 3 2 4 3 12 5 5 3 1 . 11 4 11 1 2 6 . 8 15 21 7 8 38 29 Device 136 | . 1 . 4 . 4 1 2 1 1 5 2 1 1 1 5 2 . . 1 . 3 . 8 1 1 6 . 6 11 15 2 3 23 25 Storage 18 | . 2 . . . 2 . 1 . . 1 . . 1 . 1 . 1 . . . 2 1 . . 1 . . . 1 1 . . 3 . Processor 22 | . . . 1 . 2 . 2 1 6 . . . . . . . . . . . 1 . 2 . . . . . . . 4 . 2 1 Hackware 14 | . . . . . . . . . . . . . 1 . . 1 . . . . . . 1 . . . . 1 . 1 . 4 5 . Protection 61 | . . 1 . . . 1 . . 2 12 1 1 1 2 6 2 4 3 . . 5 3 . . . . . 1 3 4 1 . 5 3 Artifact 1 | . . . . . . . . . . . . . . . . . . . . . . . . . . . . . . . . 1 . . Weapon 100 | . 2 . 9 2 9 4 8 . 4 5 . 1 . . . . . . . 1 13 . . . 3 . . 2 . 6 . 9 9 13 Energy Gun 8 | . . . . . 3 2 . . . . . 1 . . . . . . . . 2 . . . . . . . . . . . . . Energy Cannon 30 | . . . . . . 1 6 . 1 4 . . . . . . . . . . 2 . . . . . . . . 6 . 7 2 1 Ballistic Gun 36 | . 2 . 5 2 5 . . . 3 . . . . . . . . . . . 3 . . . 2 . . . . . . . 5 9 Ballistic Cannon 3 | . . . . . . . . . . . . . . . . . . . . . . . . . . . . . . . . . . 3 Launcher 6 | . . . . . 1 1 2 . . . . . . . . . . . . . . . . . 1 . . . . . . 1 . . Special Weapon 10 | . . . 2 . . . . . . . . . . . . . . . . . 3 . . . . . . 2 . . . 1 2 . Impact Weapon . | . . . . . . . . . . . . . . . . . . . . . . . . . . . . . . . . . . . Slashing Weapon 7 | . . . 2 . . . . . . 1 . . . . . . . . . 1 3 . . . . . . . . . . . . . Piercing Weapon . | . . . . . . . . . . . . . . . . . . . . . . . . . . . . . . . . . . . Special Melee Weapon . | . . . . . . . . . . . . . . . . . . . . . . . . . . . . . . . . . . . Unidentified Prototypes 56 | . . . 6 . 4 . 1 . 4 9 . 1 . 2 2 2 . . . . 7 2 . 1 . 5 . 1 3 4 1 . 1 . Corrupted Parts 11 | . . . . . . . . . . . . . . 1 1 . . . . . . 1 . . . . . . . 5 1 . 2 . System Corruption 63 | . . . . . . . . . . . . . . 3 4 . . . . . . 2 . . . . . . . 35 9 . 10 . Parts Lost 47 | . 1 1 7 . 1 4 1 . . 2 2 . 1 1 . 2 1 1 . . 2 4 1 1 . . . 1 2 2 . 2 . 7 Power 2 | . . 1 . . . . . . . . 1 . . . . . . . . . . . . . . . . . . . . . . . Propulsion 9 | . 1 . 3 . . 4 1 . . . . . . . . . . . . . . . . . . . . . . . . . . . Utility 25 | . . . 1 . . . . . . 2 1 . . 1 . 2 . 1 . . 2 4 1 1 . . . 1 2 . . 1 . 5 Weapon 11 | . . . 3 . 1 . . . . . . . 1 . . . 1 . . . . . . . . . . . . 2 . 1 . 2 Highest Loss Streak 5 | . 1 1 5 . 1 2 1 . . 2 2 . 1 1 . 1 1 1 . . 1 3 1 1 . . . 1 2 1 . 1 . 2 To Critical Strikes 5 | . . . 5 . . . . . . . . . . . . . . . . . . . . . . . . . . . . . . . Average Slot Usage (%) 84 | . 95 99 99 100 97 99 92 91 91 89 95 83 81 80 70 74 85 86 88 88 75 87 88 81 80 88 89 88 81 67 67 72 76 78 Core 1 | . 8 10 5 14 7 . 2 7 7 6 4 . . . . . . . . . . . . . . . . . . . . . . . Reactor 4 | . . . . . . . . . . . . 6 6 6 6 6 5 5 5 5 4 4 5 5 5 4 5 4 4 4 8 8 8 8 Treads 9 | . 18 28 15 . 16 25 16 15 22 13 . . . 4 12 11 . . . . . . . . . . . . 8 14 12 12 11 12 Leg 11 | . 9 . 12 28 3 . . . . 12 30 26 26 16 . 3 26 23 23 23 22 22 26 26 25 26 26 26 11 . . . . . Device 15 | . 8 6 . . 9 9 14 15 15 10 12 17 14 17 15 11 6 13 17 17 15 22 23 17 19 25 26 23 22 19 22 17 18 18 Storage 10 | . 16 14 14 14 9 9 7 7 7 10 15 13 13 13 13 13 13 11 11 11 10 10 10 10 9 10 10 9 9 9 8 8 8 4 Processor 5 | . . . 6 14 25 21 21 22 14 9 7 4 . . . . . . . . 1 1 4 6 5 5 5 4 4 . 1 1 2 7 Protection 8 | . . 7 7 . . 5 1 . 6 11 7 1 5 8 9 10 12 14 17 17 10 9 6 5 4 5 5 7 8 8 8 8 8 13 Energy Cannon 8 | . . . . . . 1 10 15 4 9 14 12 13 13 11 13 13 11 11 11 . 11 10 10 6 10 10 8 9 7 4 12 11 1 Ballistic Gun 4 | . 28 28 22 28 15 . . . 8 3 . . . . . . . . . . 1 . . . 1 . . . . . . . 3 11 Naked Turns . | . . . . . . . . . . . . . . . . . . . . . . . . . . . . . . . . . . . Heaviest Build 234 | 13 52 52 73 73 108 122 127 118 128 156 153 167 167 166 171 170 168 174 179 179 175 176 176 164 163 170 170 172 195 195 214 233 234 227 Greatest Support 250 | 20 43 43 60 60 75 62 89 28 117 117 114 114 114 160 160 160 120 140 140 120 140 140 170 150 170 170 170 195 210 240 245 245 250 250 Greatest Overweight (x) 8 | . 1 1 1 1 8 7 4 4 3 1 2 1 1 2 1 1 1 1 1 1 1 1 1 1 1 . . 1 1 . 1 . 1 . Average Overweight (x) . | . . 1 . 1 5 2 3 4 1 . 1 . 1 1 . . 1 1 1 1 . . . 1 . . . . . . . . . . Largest Inventory Capacity 25 | . 20 20 20 20 25 25 25 25 25 25 25 25 25 25 25 25 25 25 25 25 25 25 25 25 25 25 25 25 25 25 25 25 25 25 Average Capacity 24 | . 12 20 20 20 23 25 25 25 25 25 25 25 25 25 25 25 25 25 25 25 24 24 25 25 24 25 25 25 25 25 25 25 25 25 Most Carried 25 | . 18 20 20 16 25 25 25 25 25 25 25 25 25 25 25 25 25 25 25 24 25 25 25 25 22 25 24 25 25 25 24 25 25 24 Average Carried 23 | . 9 19 16 16 22 24 24 24 24 23 24 23 24 23 24 24 24 24 24 22 22 23 24 21 20 22 24 24 24 24 22 23 23 20 Final Capacity 25 | 8 20 20 20 20 25 25 25 25 25 25 25 25 25 25 25 25 25 25 25 25 25 25 25 25 25 25 25 25 25 25 25 25 25 25 Final Carried 25 | 6 18 20 17 16 25 25 24 23 24 25 23 25 25 25 25 25 25 25 25 21 25 24 25 21 20 24 24 25 25 23 24 22 24 16 Class Distribution -------------------- 38% | Scavenger-Mutant 17% | Golem 16% | Mutant 13% | Scavenger-Golem 4% | Scavenger-Tank 3% | Commander-Golem 3% | Skirmisher Dominant Class ---------------- Mutant | -10/Materials Mutant | -10/Mines Mutant | -10/Exiles Scavenger-Mutant | -9/Mines Scavenger-Mutant | -8/Materials Mutant | -8/Garrison Mutant | -7/Factory Scavenger-Mutant | -7/Lower Caves Scavenger-Mutant | -7/Zion Scavenger-Mutant | -7/Deep Caves Scavenger-Mutant | -6/Proximity Caves Golem | -6/Factory Commander-Golem | -6/Extension Scavenger-Golem | -6/Cetus Scavenger-Golem | -6/Archives Golem | -6/Hub_04(d) Scavenger-Golem | -6/Garrison Scavenger-Golem | -5/Factory Scavenger-Golem | -5/Upper Caves Scavenger-Golem | -5/Upper Caves Golem | -5/Zhirov Golem | -4/Proximity Caves Golem | -4/Factory Skirmisher | -4/Upper Caves Golem | -4/Upper Caves Golem | -4/Warlord Golem | -3/Proximity Caves Mutant | -3/Research Mutant | -3/Quarantine Mutant | -3/Section 7 Scavenger-Mutant | -2/Research Scavenger-Mutant | -1/Access Scavenger-Mutant | -1/Command Scavenger-Tank | -1/Access_0 Resources | -11 -10 -10 -10 -9 -8 -8 -7 -7 -7 -7 -6 -6 -6 -6 -6 -6 -6 -5 -5 -5 -5 -4 -4 -4 -4 -4 -3 -3 -3 -3 -2 -1 -1 -1 ----------- Run | Scr Mat Min Exi Min Mat Gar Fac Low Zio Dee Pro Fac Ext Cet Arc Hub Gar Fac Upp Upp Zhi Pro Fac Upp Upp War Pro Res Qua Sec Res Acc Com Ac0 Matter Collected 11095 | 200 167 155 618 34 727 145 345 . 102 474 20 20 60 79 146 140 130 10 40 17 536 150 115 10 331 87 . 136 210 867 287 943 1240 2554 Remotely 1601 | . . . . . . . . . . . . . . . . . . . . . . . . . . . . . . . . . . 1601 Salvage Created 32660 | . 364 183 515 134 1022 1155 736 49 . 558 813 298 1231 56 230 2133 974 50 493 159 564 632 910 452 259 1108 398 1123 1420 4060 295 4948 3281 2057 Parts 1486 | . 16 13 77 4 42 54 34 3 . 11 35 7 51 3 13 128 40 . 7 14 11 26 46 25 17 25 24 45 75 154 7 193 171 115 Haulers Intercepted 11 | . 1 . . . 2 . . . . . . 1 1 . . 1 . . . . . . . . . . . 1 . 1 . 3 . . Recyclers Shooed 7 | . 1 . . . 1 . . . . . . . 1 . . . . . . . . . 3 . . . . 1 . . . . . . Parts Field Recycled . | . . . . . . . . . . . . . . . . . . . . . . . . . . . . . . . . . . . Retrieved Matter . | . . . . . . . . . . . . . . . . . . . . . . . . . . . . . . . . . . . Parts Self-Destructed 139 | . . . . . . . . 3 1 . 37 . . . . . . . 5 17 . 26 . 25 1 . 24 . . . . . . . Prevented 5 | . . . . . . . . . . . . . . . . . . . . 1 4 . . . . . . . . . . . . . Kills | -11 -10 -10 -10 -9 -8 -8 -7 -7 -7 -7 -6 -6 -6 -6 -6 -6 -6 -5 -5 -5 -5 -4 -4 -4 -4 -4 -3 -3 -3 -3 -2 -1 -1 -1 ------- Run | Scr Mat Min Exi Min Mat Gar Fac Low Zio Dee Pro Fac Ext Cet Arc Hub Gar Fac Upp Upp Zhi Pro Fac Upp Upp War Pro Res Qua Sec Res Acc Com Ac0 Combat Hostiles Destroyed 417 | . 4 5 2 1 15 30 19 1 . 6 15 3 16 1 2 26 15 1 1 6 . 8 10 10 9 15 8 14 20 49 3 59 22 21 Melee 2 | . . . 1 . . . . . . . . . . . . . . . . . . . . . . . . . . 1 . . . . Guns 75 | . 4 5 1 1 13 26 1 . . 2 . . . . . . . . . . . . . . 1 . . . . . . . 1 20 Cannons 256 | . . . . . . 2 5 1 . 3 15 3 16 1 2 26 15 1 1 6 . 8 10 10 . 15 8 14 20 21 1 37 14 1 AOE 26 | . . . . . 2 2 12 . . . . . . . . . . . . . . . . . 8 . . . . 2 . . . . Classes Destroyed 32 | . 5 1 3 . 7 1 2 . . 3 . . 1 . . 1 . . . . . . . . 2 2 . . . 1 1 1 1 . Worker 22 | . 1 . . . . . 2 . . . . 1 . . . 9 . . . . . . . . . . . 1 . 1 . 5 2 . Builder 10 | . 1 . . . . . 2 . . . . . . . . 7 . . . . . . . . . . . . . . . . . . Tunneler 1 | . . . . . . . 1 . . . . . . . . . . . . . . . . . . . . . . . . . . . Hauler 11 | . 1 . . . 2 . . . . . . 1 1 . . 1 . . . . . . . . . . . 1 . 1 . 3 . . Recycler 9 | . 1 1 . 1 2 . . . . . . . 1 . . . . . . . . . 2 . . . . . . . . . 1 . Mechanic 3 | . . . . . 1 . . . . . . . . . . . . . . . . . . . . 1 . . . . . 1 . . Operator 16 | . . . . . 1 . 1 . . . . . 2 . 2 1 . . . . . . 2 . . . . 1 2 . . 2 2 . Turret 1 | . . . 1 . . . . . . . . . . . . . . . . . . . . . . . . . . . . . . . Watcher 17 | . . . . . 1 . 2 . . . . . 1 . . 3 . . . . . . 2 . . . . 1 1 1 1 3 1 . Swarmer 77 | . . 3 . . 2 10 3 . . . 3 . . . . 2 7 . . 5 . . 5 6 5 . 5 5 3 . . 10 3 . Saboteur 3 | . . . . . . . . . . . . . . . . . . . . . . . . . . . . . . 1 . 2 . . Grunt 120 | . 4 2 . 1 8 9 8 . . . 4 2 5 . . 10 3 1 . . . 4 . 1 . 5 1 3 4 19 2 21 3 . Brawler 14 | . . . . . 1 . 2 . . . . 1 1 . . . . . . . . 1 . . . . . 2 . 3 . 2 1 . Duelist 10 | . . . . . 1 . . . . . 2 . . . . . . . . . . . . . . 2 . . . 3 . 2 . . Protector 4 | . . . . . . . . . . . . . . . . . . . . . . . . . . 2 . . . 1 . . 1 . Sentry 42 | . . . . . 2 8 2 . . . 1 . 8 . 2 2 2 . . . . . 3 1 . . . 2 3 3 . 2 1 . Demolisher 1 | . . . . . . . . . . . . . . . . . . . . . . . . . . . . . . . 1 . . . Specialist 10 | . . . . . . 2 . . . . 2 . . . . 2 . . . . . . . . . 2 . . . 2 . . . . Hunter 43 | . . . . . 1 1 2 1 . . 2 . . . . 5 . . . 1 . 2 . 2 . . 2 1 2 8 . 7 6 . Programmer 40 | . . . . . . . 2 . . . 1 . . . . 1 . . 1 . . . 1 . . 2 . . 8 6 . 13 5 . Heavy 3 | . . . . . . . . . . . . . . . . 1 . . . . . . 1 . . . . . . 1 . . . . Behemoth 9 | . . . . . . . . . . . . . 1 . . . 5 . . . . 1 . . . 1 . 1 . . . . . . Cetus Guard 1 | . . . . . . . . . . . . . . 1 . . . . . . . . . . . . . . . . . . . . S7 Guard 2 | . . . . . . . . . . . . . . . . . . . . . . . . . . . . . . 2 . . . . M Guard 1 | . . . . . . . . . . . . . . . . . . . . . . . . . . . . . . . . . 1 . Enhanced Grunt 14 | . . . . . . . . . . . . . . . . . . . . . . . . . . . . . . . . . . 14 Enhanced Hunter 4 | . . . . . . . . . . . . . . . . . . . . . . . . . . . . . . . . . . 4 Lightning 3 | . . . . . . . . . . . . . . . . 3 . . . . . . . . . . . . . . . . . . Striker 1 | . . . . . . . . . . . . . . . . . . . . . . . . . . 1 . . . . . . . . Zionite 7 | . . . 6 1 . . . . . . . . . . . . . . . . . . . . . . . . . . . . . . Z-Light 2 | . . . . . . . . . . 2 . . . . . . . . . . . . . . . . . . . . . . . . Packrat 1 | . . . . . . . . . . . . . . . . . . . . . . . . . 1 . . . . . . . . . Samaritan 2 | . . . . . . . . . . . . . . . . . . . . . . . . . 2 . . . . . . . . . Master Thief 4 | . . . . . . . . . . . . . . . . . . . . . . . . . 4 . . . . . . . . . Assembler 1 | . . . . . . . . . . 1 . . . . . . . . . . . . . . . . . . . . . . . . Assembled 1 | . . . 1 . . . . . . . . . . . . . . . . . . . . . . . . . . . . . . . Golem 4 | . . . . . . . . . . 4 . . . . . . . . . . . . . . . . . . . . . . . . Thug 3 | . . . . . 1 . . . . . . . . . . . . . . . . . . . . . . . . . . . 2 . Guerrilla 1 | . . . . . . . . . . . . . 1 . . . . . . . . . . . . . . . . . . . . . Fireman 1 | . . . . . . . . . . . . . . . . . . . . . . . . . . . . . . . . 1 . . Mutant 1 | . . . . . . . . . . . . . . . . . . . . . . . . . . . . . . . . . 1 . Best Kill Streak 17 | . 4 3 4 1 8 6 14 1 . 3 5 4 4 1 2 17 10 1 1 4 1 2 5 3 5 5 5 8 3 8 3 10 5 8 Combat Bots Only 13 | . 2 3 1 1 7 6 11 1 . 2 5 3 3 1 2 5 10 1 1 4 . 2 5 3 5 5 5 8 3 13 3 8 5 8 Max Kills in Single Turn 11 | . 1 2 2 2 2 2 4 1 . 1 1 2 1 1 1 11 1 1 1 1 1 1 1 1 4 1 1 1 2 2 1 2 1 2 Gunslinging 1 | . . . . . . 1 . . . . . . . . . . . . . . . . . . . . . . . . . . . . Exploded 4 | . . . . . 1 1 4 . . . . . . . . . . . . . . . . . 4 . . . . 2 . . . . Melee 1 | . . . 1 . . . . . . . . . . . . . . . . . . . . . . . . . . 1 . . . . Uniques/NPCs Destroyed 10 | . . . 4 . . . . . . 1 . . . . . . . . . . 2 . . . . . . . . . . . . 3 8R-AWN (-10/Exiles) EX-BIN (-10/Exiles) EX-DEC (-10/Exiles) EX-HEX (-10/Exiles) Z-Imprinter (-7/Deep Caves) Perun (-5/Zhirov) Svarog (-5/Zhirov) A8 (-1/Access_0) A6 (-1/Access_0) A5 (-1/Access_0) Combat | -11 -10 -10 -10 -9 -8 -8 -7 -7 -7 -7 -6 -6 -6 -6 -6 -6 -6 -5 -5 -5 -5 -4 -4 -4 -4 -4 -3 -3 -3 -3 -2 -1 -1 -1 -------- Run | Scr Mat Min Exi Min Mat Gar Fac Low Zio Dee Pro Fac Ext Cet Arc Hub Gar Fac Upp Upp Zhi Pro Fac Upp Upp War Pro Res Qua Sec Res Acc Com Ac0 Damage Taken 36677 | . 284 175 942 . 855 1105 1001 38 . 1030 1694 18 1301 299 93 2873 1745 113 98 96 1535 890 694 334 941 199 189 739 1130 2642 81 1640 1091 10812 Core 3385 | . 13 35 183 . 147 121 184 . . 79 280 18 98 . . 135 150 . . 9 129 53 18 33 230 29 18 109 94 131 . 40 55 994 Absorbed by Shields 13176 | . . . . . . . 46 . . 83 . . 99 45 . . 177 . . 37 363 . . . . 209 204 . 407 1010 86 1705 1115 7590 Reduced by Siege Mode 1045 | . . . . . . . . . . 36 . . . . . 73 . . . . . . . . . . . . 4 167 . 56 23 686 Redirected to Shielding 757 | . . 8 7 . . . . . . 157 . . . . . . . . . . 152 . . . . . . . . . . . . 433 Regen/Repaired (Parts) 9162 | . . . . . 267 . . . 40 . . . . . . . . . . . . . . . . 15 . . . 2335 11 486 2122 3886 Core Remaining (%) 59 | 100 . . . 7 . 51 . . . . 22 . . . . . 52 . . . . 80 . . . . 71 . . 55 100 . . . Volleys Fired 1783 | . 29 11 41 2 62 70 40 7 4 38 38 10 61 9 12 96 74 7 27 13 43 32 35 25 22 53 29 60 61 203 12 187 244 126 Largest 4 | . 2 2 2 2 2 2 2 2 1 2 2 2 2 2 2 2 2 2 2 2 2 2 2 2 2 2 2 2 2 1 1 1 3 4 Hottest 255 | . 46 46 60 60 122 151 151 180 90 180 50 50 50 50 50 50 50 50 50 50 143 50 50 50 60 50 50 50 50 105 70 105 218 255 Shots Fired 2928 | . 58 22 81 4 113 136 62 9 4 60 73 20 108 18 24 184 122 14 55 26 61 65 69 50 29 96 58 97 117 199 12 187 276 419 Gun 839 | . 58 22 73 4 110 122 4 . . 20 . . . . . . . . . . 43 . . . 8 . . . . . . . 30 345 Cannon 1947 | . . . . . . 10 48 9 4 40 73 20 108 18 24 184 122 14 55 26 6 65 69 50 6 96 58 95 117 199 12 187 158 74 Launcher 32 | . . . . . 3 4 10 . . . . . . . . . . . . . . . . . 15 . . . . . . . . . Special 110 | . . . 8 . . . . . . . . . . . . . . . . . 12 . . . . . . 2 . . . . 88 . Kinetic 730 | . 58 22 73 4 94 . . . . 20 . . . . . . . . . . 32 . . . 8 . . . . . . . 30 389 Thermal 1802 | . . . 8 . 16 132 45 9 4 26 73 20 108 18 24 184 122 14 55 26 15 65 69 50 6 96 58 95 117 69 . 75 173 30 Explosive 32 | . . . . . 3 4 10 . . . . . . . . . . . . . . . . . 15 . . . . . . . . . Electromagnetic 359 | . . . . . . . 7 . . 14 . . . . . . . . . . 11 . . . . . . . . 130 12 112 73 . Robot Hit Streak 72 | . 6 10 14 2 30 27 9 7 . 33 46 36 19 9 9 15 32 3 5 3 40 21 16 14 18 21 8 15 12 19 18 15 55 72 Robot Miss Streak 8 | . 2 2 4 1 3 1 2 . . 4 2 . 4 1 2 2 3 2 3 8 1 2 2 2 . 3 5 5 3 2 1 2 4 3 Penetration Max 2 | . . . 1 1 . . . . . . . . . . . . . . . . . . . . . . . . . 1 1 1 1 2 Secondary Targets 15 | . 2 . . . 2 4 . . . . . . . . . . . . . . . . . . . . . . . . . . . 7 Max Gunslinging Chain 1 | . 1 . . . 1 1 . . . . . . . . . . . . . . . . . . . . . . . . . . . 1 Capacitor 460 | . . . . . . . . . . . . . . . . . . . . . . . . . . . . . . 137 12 187 124 . Shots Hit Robots 2161 | . 40 17 79 2 94 90 39 3 . 41 58 17 70 15 19 108 67 8 8 9 89 43 42 26 14 65 26 64 84 148 9 148 226 393 Core Hits 1212 | . 16 9 25 4 44 39 35 1 . 20 13 4 29 4 8 69 25 2 4 4 40 17 21 13 13 37 11 30 35 68 5 88 108 371 Critical Kills 16 | . . . 6 2 . . . . . 1 . . . . . . . . . . . . . . 4 . . . . . . . 1 2 Critical Parts Destroyed 24 | . 1 . 8 . 4 . . . . 5 . . . . . . . . . . 1 . . . . . . . . . . . . 5 Critical Strikes 91 | . 1 . 16 2 5 9 . . . 8 . . . . . . . . . . 3 . . . 4 . . . . 8 2 20 4 9 Burn 10 | . . . . . 1 9 . . . . . . . . . . . . . . . . . . . . . . . . . . . . Meltdown 1 | . . . . . . . . . . . . . . . . . . . . . . . . . . . . . . . . . 1 . Destroy 46 | . 1 . 14 2 4 . . . . 8 . . . . . . . . . . 3 . . . 4 . . . . . . . 1 9 Corrupt 30 | . . . . . . . . . . . . . . . . . . . . . . . . . . . . . . 8 2 20 . . Sever 4 | . . . 2 . . . . . . . . . . . . . . . . . . . . . . . . . . . . . 2 . Melee Attacks 70 | . . . 33 . . . . . . 1 . . . . . . . . . . 36 . . . . . . . . . . . . . Impact . | . . . . . . . . . . . . . . . . . . . . . . . . . . . . . . . . . . . Slashing 70 | . . . 33 . . . . . . 1 . . . . . . . . . . 36 . . . . . . . . . . . . . Piercing . | . . . . . . . . . . . . . . . . . . . . . . . . . . . . . . . . . . . Sneak Attacks . | . . . . . . . . . . . . . . . . . . . . . . . . . . . . . . . . . . . Combat Hostiles . | . . . . . . . . . . . . . . . . . . . . . . . . . . . . . . . . . . . Follow-up Attacks . | . . . . . . . . . . . . . . . . . . . . . . . . . . . . . . . . . . . Damage Inflicted 87704 | . 498 297 2196 57 1778 1995 3186 164 . 1391 3078 842 3567 717 963 6739 3298 318 456 489 1088 1956 2119 1093 1626 3100 1152 2788 4245 6751 638 7908 7381 13830 Guns 17499 | . 498 288 539 46 1584 1680 60 . . 219 . . . . . . . . . . 612 . . . 82 . . . . . . . 1095 10796 Cannons 60129 | . . . . . . 138 883 164 . 941 3078 842 3549 717 963 5350 3298 318 456 489 229 1956 2107 1093 . 3100 1152 2788 4245 6532 638 7801 4268 3034 Explosions 5997 | . . . . . 194 177 2243 . . 231 . . . . . 1389 . . . . . . . . 1544 . . . . 219 . . . . Melee 1801 | . . . 1652 . . . . . . . . . . . . . . . . . 149 . . . . . . . . . . . . . Ramming 618 | . . 9 . 11 . . . . . . . . 18 . . . . . . . . . 12 . . . . . . . . 107 461 . Kinetic 17611 | . 498 288 539 46 1284 . . . . 219 . . . . . . . . . . 471 . . . 82 . . . . . . . 1095 13089 Thermal 49310 | . . . 5 . 300 1818 850 164 . 1053 3078 842 3549 717 963 5350 3298 318 456 489 327 1956 2107 1093 . 3100 1152 2788 4245 2098 . 2445 4008 741 Explosive 4158 | . . . . . 194 177 2243 . . . . . . . . . . . . . . . . . 1544 . . . . . . . . . Electromagnetic 14206 | . . . . . . . 93 . . 119 . . . . . 1389 . . . . 141 . . . . . . . . 4653 638 5356 1817 . Impact . | . . . . . . . . . . . . . . . . . . . . . . . . . . . . . . . . . . . Slashing 1801 | . . . 1652 . . . . . . . . . . . . . . . . . 149 . . . . . . . . . . . . . Piercing . | . . . . . . . . . . . . . . . . . . . . . . . . . . . . . . . . . . . Highest Corruption 49 | . . . . . . . 2 2 2 . . . . 3 5 16 17 . 1 1 5 7 . . . . . . 4 49 9 8 10 1 Average Corruption 7 | . . . . . . . 2 2 2 . . . . 3 2 6 16 . 1 1 3 6 . . . . . . 2 19 9 5 8 1 Corruption Purged 27 | . . . . . . . . . . . . . . . 7 . . . . . . . . . . . . . . . . . 20 . Corruption Blocked 90 | . . . . . . . . . . . . . . . . . . . . . . . . . . . . . . . 34 . 56 . Effects 374 | . . . . . . . 2 1 2 . . . . 3 5 18 72 . 9 3 39 29 . . . . . . 11 61 10 31 76 2 Message Errors 94 | . . . . . . . 1 . . . . . . . 1 8 13 . 3 1 11 10 . . . . . . 3 9 2 10 22 . Matter Fused 83 | . . . . . . . . . 1 . . . . 1 1 5 12 . 2 1 12 9 . . . . . . 2 16 2 4 15 . Heat Flow Errors 40 | . . . . . . . . 1 . . . . . . 1 1 9 . . . 8 1 . . . . . . 2 7 . 2 7 1 Energy Discharges 39 | . . . . . . . 1 . . . . . . 2 1 . 14 . . . 4 2 . . . . . . 1 4 . 3 7 . Parts Rejected 3 | . . . . . . . . . . . . . . . . . . . . . . . . . . . . . . 2 . . 1 . Data Loss (minor) 61 | . . . . . . . . . 1 . . . . . 1 2 16 . 2 1 3 2 . . . . . . 1 9 3 8 12 . Data Loss (major) 17 | . . . . . . . . . . . . . . . . 1 2 . 1 . 1 4 . . . . . . 1 3 . 2 2 . Misfires 13 | . . . . . . . . . . . . . . . . . 3 . 1 . . 1 . . . . . . . 3 1 . 4 . Alerts 9 | . . . . . . . . . . . . . . . . . 1 . . . . . . . . . . . 1 1 1 2 3 . Misdirections 2 | . . . . . . . . . . . . . . . . . 1 . . . . . . . . . . . . . . . 1 . Weapon Failures 13 | . . . . . . . . . . . . . . . . 1 1 . . . . . . . . . . . . 7 1 . 2 1 Overload Shots 7 | . . . . . . . . 4 3 . . . . . . . . . . . . . . . . . . . . . . . . . Effects 1 | . . . . . . . . . 1 . . . . . . . . . . . . . . . . . . . . . . . . . Energy Bleed 1 | . . . . . . . . . 1 . . . . . . . . . . . . . . . . . . . . . . . . . Overflow Damage 2673 | . . . 103 . . 29 176 . . 32 351 73 73 17 47 310 36 8 119 54 89 4 82 76 145 24 18 120 190 91 34 254 91 27 Projectiles 2007 | . . . . . . 29 28 . . 19 351 73 73 17 47 191 36 8 119 54 89 4 82 76 . 24 18 120 190 91 34 187 20 27 Explosions 425 | . . . . . . . 148 . . 13 . . . . . 119 . . . . . . . . 145 . . . . . . . . . Melee 241 | . . . 103 . . . . . . . . . . . . . . . . . . . . . . . . . . . . 67 71 . Knockbacks 19 | . . . . . . . . . . . . . 1 . . . . . . . . . . . . . . . . . . 1 3 14 Impact 5 | . . . . . . . . . . . . . 1 . . . . . . . . . . . . . . . . . . 1 3 . Kinetic 14 | . . . . . . . . . . . . . . . . . . . . . . . . . . . . . . . . . . 14 Secondary . | . . . . . . . . . . . . . . . . . . . . . . . . . . . . . . . . . . . Self-Inflicted Damage 769 | . . . . . . . 27 . . . . . . . . 85 . . . . . . . . 557 . . . . . . . 100 . Shots 12 | . . . . . . . 1 . . . . . . . . 1 . . . . . . . . 10 . . . . . . . . . Rammed 17 | . . 1 . . . . . . . . . . . . . . . . . . . . . . . . . . . . . 2 14 . Targets Rammed 22 | . . 1 . 1 . . . . . . . . 1 . . . . . . . . . 2 . . . . 1 . . . 2 14 . Kicked 5 | . . . . 1 . . . . . . . . 1 . . . . . . . . . 2 . . . . 1 . . . . . . Crushed . | . . . . . . . . . . . . . . . . . . . . . . . . . . . . . . . . . . . Highest Temperature 394 | . 15 45 168 21 114 302 192 144 28 354 324 . . . 171 248 279 . . . 322 111 . . . . . . 164 354 . 342 394 119 Average Temperature 87 | . 8 19 55 13 62 45 70 77 16 97 138 . . . 102 88 92 . . . 111 56 . . . . . . 101 102 . 122 94 20 Received Heat Transfer 3554 | . 159 75 . . 333 306 129 . . 162 288 9 273 22 9 357 291 54 12 . 84 187 45 18 36 35 4 130 125 286 4 105 16 . Effects 1 | . . . . . . . . . . . . . . . . . 1 . . . . . . . . . . . . . . . . . Energy Bleed 1 | . . . . . . . . . . . . . . . . . 1 . . . . . . . . . . . . . . . . . Siege Activations 42 | . . . . . . . . . . 2 . . . . . 4 . . . . . . . . . . . . 1 8 . 11 6 10 Total Turns 763 | . . . . . . . . . . 41 . . . . . 82 . . . . . . . . . . . . 7 161 . 106 34 332 Longest Duration 73 | . . . . . . . . . . 27 . . . . . 26 . . . . . . . . . . . . 7 58 . 29 12 73 Robots Corrupted 61 | . . . . . . . . . . 1 . . . . . . . . . . . . . . . . . . . 25 2 26 7 . Combat Hostiles 56 | . . . . . . . . . . 1 . . . . . . . . . . . . . . . . . . . 25 2 22 6 . Parts Fried 118 | . . . . . . . 1 . . . . . . . . 6 . . . . 1 . . . . 1 . . . 40 4 53 12 . Impact Corruptions 7 | . . . . . . . . . . . . . . . . . . . . . . . . . . . . . . . . 2 5 . Robots Melted 2 | . . . . . . . 1 . . . . . . . . . . . . . . . . . . . . . . . . . 1 . Combat Hostiles 2 | . . . . . . . 1 . . . . . . . . . . . . . . . . . . . . . . . . . 1 . Parts Melted 61 | . . . . . 2 10 5 . . 1 3 . 1 . 1 3 1 1 1 . . 1 2 1 . 2 2 2 7 3 . 7 5 . Heat Transferred 32910 | . . . 45 . 629 3922 1073 150 . 694 1450 450 1900 375 525 2767 1750 200 250 275 496 1100 1150 650 . 1411 650 1581 2175 1367 . 2035 3306 534 Parts Sabotaged . | . . . . . . . . . . . . . . . . . . . . . . . . . . . . . . . . . . . Parts Stolen 6 | . . . . . . . . . . . . . . . . . . . 1 2 . . . 2 1 . . . . . . . . . Parts Stripped . | . . . . . . . . . . . . . . . . . . . . . . . . . . . . . . . . . . . Power Chain Reactions 5 | . . . . . . . . . . 2 . . . . . 1 . . . . . . . . . . . . . 2 . . . . Missiles Intercepted . | . . . . . . . . . . . . . . . . . . . . . . . . . . . . . . . . . . . Alert | -11 -10 -10 -10 -9 -8 -8 -7 -7 -7 -7 -6 -6 -6 -6 -6 -6 -6 -5 -5 -5 -5 -4 -4 -4 -4 -4 -3 -3 -3 -3 -2 -1 -1 -1 ------- Run | Scr Mat Min Exi Min Mat Gar Fac Low Zio Dee Pro Fac Ext Cet Arc Hub Gar Fac Upp Upp Zhi Pro Fac Upp Upp War Pro Res Qua Sec Res Acc Com Ac0 Peak Influence 1507 | . 175 142 . 186 373 1150 1092 . . . . 114 384 663 393 1019 1507 825 . . . . 334 . . . . 492 368 955 537 1283 1225 . Initial 791 | . . 67 . . . 89 603 . . . . 20 3 203 243 66 634 791 . . . . . . . . . . 170 110 537 248 771 . Average 467 | . 108 79 . 113 89 599 793 . . . . 54 179 434 284 461 1176 370 . . . . 196 . . . . 282 211 348 466 736 1020 . Maximum Alert Level 4 | . . . . . 1 4 3 . . . . . 1 2 1 3 4 3 . . . . 1 . . . . 2 1 3 2 4 4 . Low Security (%) 25 | . 100 100 . 100 81 17 . . . . . 100 56 . 48 15 . 56 . . . . 57 . . . . 21 41 40 . . . . Level 1 18 | . . . . . 18 14 . . . . . . 43 47 51 45 . . . . . . 42 . . . . 61 58 22 25 23 . . Level 2 10 | . . . . . . 30 57 . . . . . . 52 . 13 9 15 . . . . . . . . . 16 . 22 74 21 . . Level 3 13 | . . . . . . 27 42 . . . . . . . . 25 33 28 . . . . . . . . . . . 14 . 37 12 . Level 4 31 | . . . . . . 9 . . . . . . . . . . 56 . . . . . . . . . . . . . . 17 87 . Level 5 . | . . . . . . . . . . . . . . . . . . . . . . . . . . . . . . . . . . . High Security . | . . . . . . . . . . . . . . . . . . . . . . . . . . . . . . . . . . . Max Security . | . . . . . . . . . . . . . . . . . . . . . . . . . . . . . . . . . . . Squads Dispatched 66 | . 2 . . . 4 . 5 . . . . . . . . 9 . . . . . . 2 . . . . 3 7 12 . 14 8 . Investigation 8 | . . . . . 1 . 2 . . . . . . . . 1 . . . . . . . . . . . . . . . 2 2 . Extermination 15 | . . . . . . . 2 . . . . . . . . 1 . . . . . . 1 . . . . . 2 2 . 3 4 . Reinforcement 21 | . 2 . . . . . 1 . . . . . . . . 4 . . . . . . 1 . . . . 3 2 8 . . . . Assault 9 | . . . . . . . . . . . . . . . . . . . . . . . . . . . . . . 2 . 5 2 . Garrison 13 | . . . . . 3 . . . . . . . . . . 3 . . . . . . . . . . . . 3 . . 4 . . Intercept . | . . . . . . . . . . . . . . . . . . . . . . . . . . . . . . . . . . . Searches Triggered . | . . . . . . . . . . . . . . . . . . . . . . . . . . . . . . . . . . . Construction Impeded 4 | . . . . . . . 1 . . . . . . . . . . . . . . . . . . . . . . 3 . . . . Haulers Reinforced 2 | . . . . . . . . . . . . . . . . 1 . . . . . . . . . . . . . 1 . . . . Active Scanning Responses . | . . . . . . . . . . . . . . . . . . . . . . . . . . . . . . . . . . . Cargo Convoy Interrupts . | . . . . . . . . . . . . . . . . . . . . . . . . . . . . . . . . . . . Stealth | -11 -10 -10 -10 -9 -8 -8 -7 -7 -7 -7 -6 -6 -6 -6 -6 -6 -6 -5 -5 -5 -5 -4 -4 -4 -4 -4 -3 -3 -3 -3 -2 -1 -1 -1 --------- Run | Scr Mat Min Exi Min Mat Gar Fac Low Zio Dee Pro Fac Ext Cet Arc Hub Gar Fac Upp Upp Zhi Pro Fac Upp Upp War Pro Res Qua Sec Res Acc Com Ac0 Distress Signals 52 | . 1 . . . . . . . . . . . . 2 . 4 . . . . . . 1 . . . . 6 . 4 7 1 26 . Communications Jammed 16 | . . . . . . . . . . . . . . . . . . . . . . . 15 1 . . . . . . . . . . Distress Signals 10 | . . . . . . . . . . . . . . . . . . . . . . . 9 1 . . . . . . . . . . Times Spotted 736 | . 11 5 27 6 18 30 27 1 . 15 23 3 31 13 6 36 22 1 4 11 23 9 13 14 5 66 7 30 27 62 14 90 53 33 Peak Tracking Total 12 | . 3 2 9 3 3 5 9 1 . 4 7 3 5 5 2 5 8 1 1 4 3 4 3 3 4 12 4 5 4 8 6 7 8 9 Tactical Retreats 65 | . . . 13 . . 1 1 . . . 9 . . . . 2 1 . 1 . 19 1 1 . 1 2 . 1 3 3 . 3 3 . Traps | -11 -10 -10 -10 -9 -8 -8 -7 -7 -7 -7 -6 -6 -6 -6 -6 -6 -6 -5 -5 -5 -5 -4 -4 -4 -4 -4 -3 -3 -3 -3 -2 -1 -1 -1 ------- Run | Scr Mat Min Exi Min Mat Gar Fac Low Zio Dee Pro Fac Ext Cet Arc Hub Gar Fac Upp Upp Zhi Pro Fac Upp Upp War Pro Res Qua Sec Res Acc Com Ac0 Traps Triggered 33 | . . . . . . 8 2 . . . . . 6 . . . 12 . . . . . . . . . . 1 1 . . 1 2 . Indirectly . | . . . . . . . . . . . . . . . . . . . . . . . . . . . . . . . . . . . Trap Hack Attempts . | . . . . . . . . . . . . . . . . . . . . . . . . . . . . . . . . . . . Triggered . | . . . . . . . . . . . . . . . . . . . . . . . . . . . . . . . . . . . Disarmed . | . . . . . . . . . . . . . . . . . . . . . . . . . . . . . . . . . . . Reprogrammed . | . . . . . . . . . . . . . . . . . . . . . . . . . . . . . . . . . . . Reused . | . . . . . . . . . . . . . . . . . . . . . . . . . . . . . . . . . . . Traps Extracted . | . . . . . . . . . . . . . . . . . . . . . . . . . . . . . . . . . . . Installed . | . . . . . . . . . . . . . . . . . . . . . . . . . . . . . . . . . . . Triggered 31 | . . . . . . . . . . . . . . . . . . . . 1 . . . . . 11 . . . . . . 19 . Exploded 3 | . . . 3 . . . . . . . . . . . . . . . . . . . . . . . . . . . . . . . Machines | -11 -10 -10 -10 -9 -8 -8 -7 -7 -7 -7 -6 -6 -6 -6 -6 -6 -6 -5 -5 -5 -5 -4 -4 -4 -4 -4 -3 -3 -3 -3 -2 -1 -1 -1 ---------- Run | Scr Mat Min Exi Min Mat Gar Fac Low Zio Dee Pro Fac Ext Cet Arc Hub Gar Fac Upp Upp Zhi Pro Fac Upp Upp War Pro Res Qua Sec Res Acc Com Ac0 Machines Disabled 90 | . . . 10 2 1 6 3 . 3 3 2 . 6 . 1 10 3 . . . 1 . 2 . . 2 . 7 4 14 . 1 7 2 Max in Single Turn 9 | . . . 1 1 1 1 1 . 1 . 1 . 1 . 1 9 1 . . . 1 . 1 . . 1 . 1 1 1 . 1 1 1 Garrison Access 2 | . . . . . . . . . . . . . . . . . . . . . . . . . . . . . . . 1 1 . . Garrison Relay 8 | . . . . . . 5 . . . . . . . . . . 3 . . . . . . . . . . . . . . . . . Network Hub 2 | . . . . . . . . . . . . . . . . 2 . . . . . . . . . . . . . . . . . . Energy Cycler 1 | . . . . . . . . . . . . . 1 . . . . . . . . . . . . . . . . . . . . . Machines Sabotaged . | . . . . . . . . . . . . . . . . . . . . . . . . . . . . . . . . . . . Overloaded Fab Kills . | . . . . . . . . . . . . . . . . . . . . . . . . . . . . . . . . . . . Hacking | -11 -10 -10 -10 -9 -8 -8 -7 -7 -7 -7 -6 -6 -6 -6 -6 -6 -6 -5 -5 -5 -5 -4 -4 -4 -4 -4 -3 -3 -3 -3 -2 -1 -1 -1 --------- Run | Scr Mat Min Exi Min Mat Gar Fac Low Zio Dee Pro Fac Ext Cet Arc Hub Gar Fac Upp Upp Zhi Pro Fac Upp Upp War Pro Res Qua Sec Res Acc Com Ac0 Machines Accessed 97 | . 1 . 2 . 10 2 4 . . . . 3 9 1 1 4 2 6 1 . 4 . 3 . 1 2 . 4 11 4 1 11 10 . Terminals 70 | . 1 . . . 7 2 4 . . . . 1 9 1 . 3 2 4 . . . . 2 . . . . 2 9 4 . 9 10 . Fabricators 5 | . . . . . . . . . . . . 2 . . . . . 1 . . . . . . . . . 1 . . . 1 . . Repair Stations 4 | . . . . . 1 . . . . . . . . . . . . . . . . . 1 . . . . 1 1 . . . . . Recycling Units . | . . . . . . . . . . . . . . . . . . . . . . . . . . . . . . . . . . . Scanalyzers 2 | . . . . . 1 . . . . . . . . . . . . . . . . . . . . . . . 1 . . . . . Garrison Access 5 | . . . . . 1 . . . . . . . . . . 1 . 1 . . . . . . . . . . . . 1 1 . . Total Hacks 305 | . 1 . 2 . 32 3 7 . . . . 5 24 2 2 12 4 32 1 . 17 . 13 . 1 5 . 16 43 18 2 35 28 . Successful 140 | . . . 2 . 19 1 3 . . . . 3 12 1 2 4 2 17 1 . 17 . 3 . 1 5 . 4 15 5 1 10 12 . Failed 165 | . 1 . . . 13 2 4 . . . . 2 12 1 . 8 2 15 . . . . 10 . . . . 12 28 13 1 25 16 . Catastrophic 29 | . 1 . . . 2 . 2 . . . . . 1 . . 2 . 1 . . . . 3 . . . . 2 7 3 . 3 2 . Database Lockouts . | . . . . . . . . . . . . . . . . . . . . . . . . . . . . . . . . . . . Manual 116 | . 1 . 1 . 16 . 5 . 1 . 1 4 10 1 . 1 1 13 . . . . 6 . . . . 11 15 12 . 4 13 . Terminals 223 | . 1 . . . 23 3 7 . . . . 1 24 2 . 8 4 24 . . . . 7 . . . . 9 33 18 . 31 28 . Fabricators 17 | . . . . . . . . . . . . 4 . . . . . 6 . . . . . . . . . 4 . . . 3 . . Repair Stations 21 | . . . . . 5 . . . . . . . . . . . . . . . . . 6 . . . . 3 7 . . . . . Recycling Units . | . . . . . . . . . . . . . . . . . . . . . . . . . . . . . . . . . . . Scanalyzers 6 | . . . . . 3 . . . . . . . . . . . . . . . . . . . . . . . 3 . . . . . Garrison Access 10 | . . . . . 1 . . . . . . . . . . 4 . 2 . . . . . . . . . . . . 2 1 . . Terminal Hacks 97 | . . . 2 . 11 1 1 . . . . 1 8 1 2 2 2 11 1 . 17 . 1 . 1 5 . 1 10 4 . 9 6 . Record 13 | . . . 1 . . . . . . . . . . . 2 . . . . . 5 . . . . 5 . . . . . . . . Part Schematic 5 | . . . . . . . . . . . . . . . . . . . . . 4 . . . . . . . 1 . . . . . Robot Analysis 6 | . . . . . 1 . . . . . . . . . . . . 1 . . 4 . . . . . . . . . . . . . Prototype ID Bank 5 | . . . . . . . . . . . . . . . . . . . . . 4 . . . . . . . 1 . . . . . Open Door 9 | . . . . . . . . . . . . 1 1 1 . . . . 1 . . . . . 1 . . . . . . 3 1 . Open DSF 1 | . . . . . . . . . . . . . . . . . . . . . . . . . . . . 1 . . . . . . Level Access Points 1 | . . . . . . . . . . . . . . . . . . . . . . . 1 . . . . . . . . . . . Branch Access Points 4 | . . . . . 1 . 1 . . . . . 1 . . . . 1 . . . . . . . . . . . . . . . . Emergency Access Points 4 | . . . . . 1 1 . . . . . . . . . . 1 . . . . . . . . . . . 1 . . . . . Terminal Index 2 | . . . . . . . . . . . . . . . . . . . . . . . . . . . . . . . . 1 1 . Alert Level 11 | . . . . . 1 . . . . . . . 3 . . 1 . 3 . . . . . . . . . . 2 1 . . . . Unreport Threat 15 | . . . . . 2 . . . . . . . 2 . . . . 5 . . . . . . . . . . 2 2 . 2 . . Locate Traps 1 | . . . . . 1 . . . . . . . . . . . . . . . . . . . . . . . . . . . . . Patrol Status 1 | . . . . . . . . . . . . . . . . . . . . . . . . . . . . . . . . . 1 . Recall Assault 1 | . . . . . . . . . . . . . . . . . . . . . . . . . . . . . . . . 1 . . Registered Prototypes 2 | . . . . . 1 . . . . . . . . . . . . . . . . . . . . . . . . . . . 1 . Zone Layout 12 | . . . . . 3 . . . . . . . 1 . . 1 . 1 . . . . . . . . . . 3 1 . 2 . . Patrol Navigation 1 | . . . . . . . . . . . . . . . . . 1 . . . . . . . . . . . . . . . . . EX-Prototype ID Bank 1 | . . . 1 . . . . . . . . . . . . . . . . . . . . . . . . . . . . . . . Disengage Seal 2 | . . . . . . . . . . . . . . . . . . . . . . . . . . . . . . . . . 2 . Fabricator Hacks 2 | . . . . . . . . . . . . . . . . . . 1 . . . . . . . . . 1 . . . . . . Build 2 | . . . . . . . . . . . . . . . . . . 1 . . . . . . . . . 1 . . . . . . Repair Station Hacks 7 | . . . . . 4 . . . . . . . . . . . . . . . . . 2 . . . . . 1 . . . . . Scan Component 5 | . . . . . 2 . . . . . . . . . . . . . . . . . 2 . . . . . 1 . . . . . Repair 2 | . . . . . 2 . . . . . . . . . . . . . . . . . . . . . . . . . . . . . Recycling Unit Hacks . | . . . . . . . . . . . . . . . . . . . . . . . . . . . . . . . . . . . Scanalyzer 5 | . . . . . 2 . . . . . . . . . . . . . . . . . . . . . . . 3 . . . . . Insert Component 3 | . . . . . 1 . . . . . . . . . . . . . . . . . . . . . . . 2 . . . . . Analyze 2 | . . . . . 1 . . . . . . . . . . . . . . . . . . . . . . . 1 . . . . . Garrison Access Hacks 4 | . . . . . 1 . . . . . . . . . . 1 . . . . . . . . . . . . . . 1 1 . . Unlock Access 2 | . . . . . 1 . . . . . . . . . . 1 . . . . . . . . . . . . . . . . . . Seal Access 2 | . . . . . . . . . . . . . . . . . . . . . . . . . . . . . . . 1 1 . . Unauthorized Hacks 25 | . . . . . 1 . 2 . . . . 2 4 . . 1 . 5 . . . . . . . . . 2 1 1 . . 6 . Terminals 19 | . . . . . 1 . 2 . . . . . 4 . . 1 . 2 . . . . . . . . . 1 1 1 . . 6 . Botnet 17 | . . . . . 1 . 2 . . . . . 3 . . 1 . 2 . . . . . . . . . 1 1 1 . . 5 . Disrupt 1 | . . . . . . . . . . . . . . . . . . . . . . . . . . . . . . . . . 1 . Operators 1 | . . . . . . . . . . . . . 1 . . . . . . . . . . . . . . . . . . . . . Fabricators 6 | . . . . . . . . . . . . 2 . . . . . 3 . . . . . . . . . 1 . . . . . . Prioritize 2 | . . . . . . . . . . . . . . . . . . 1 . . . . . . . . . 1 . . . . . . Liberate 2 | . . . . . . . . . . . . 1 . . . . . 1 . . . . . . . . . . . . . . . . Haulers 2 | . . . . . . . . . . . . 1 . . . . . 1 . . . . . . . . . . . . . . . . Repair Stations . | . . . . . . . . . . . . . . . . . . . . . . . . . . . . . . . . . . . Recycling Units . | . . . . . . . . . . . . . . . . . . . . . . . . . . . . . . . . . . . Scanalyzers . | . . . . . . . . . . . . . . . . . . . . . . . . . . . . . . . . . . . Garrison Access . | . . . . . . . . . . . . . . . . . . . . . . . . . . . . . . . . . . . Data Cores Recovered 6 | . . . . . . . 1 . . . . . . . . . . . . . . . 2 . . . . . 1 . . 1 1 . Used 2 | . . . . . . . 1 . . . . . . . . . . . . . . . . . . . . . 1 . . . . . Hacking Detections 71 | . 1 . . . 9 2 4 . . . . 2 8 2 . 4 2 6 . . . . 2 . . . . 2 9 3 . 8 7 . Full Trace Events 4 | . . . . . 1 . 1 . . . . . . . . 1 . . . . . . . . . . . . . . . 1 . . Feedback Events 1 | . . . . . . . . . . . . . . . . 1 . . . . . . . . . . . . . . . . . . Corruption 1 | . . . . . . . . . . . . . . . . 1 . . . . . . . . . . . . . . . . . . Feedback Blocked . | . . . . . . . . . . . . . . . . . . . . . . . . . . . . . . . . . . . Robot Schematics Acquired 3 | . . . . . . . . . 3 . . . . . . . . . . . . . . . . . . . . . . . . . Robots Built 3 | . . . . . . . . . . . . . . . . . . . . . . . . . . . . 3 . . . . . . Authchips . | . . . . . . . . . . . . . . . . . . . . . . . . . . . . . . . . . . . Time 93 | . . . . . . . . . . . . . . . . . . . . . . . . . . . . 93 . . . . . . Total Robot Build Rating 21 | . . . . . . . . . . . . . . . . . . . . . . . . . . . . 21 . . . . . . Part Schematics Acquired 21 | . . . . . . . . . 15 . . . . . . . . . . . 4 . . . . . . . 2 . . . . . Parts Built 1 | . . . . . . . . . . . . . . . . . . 1 . . . . . . . . . . . . . . . . Authchips . | . . . . . . . . . . . . . . . . . . . . . . . . . . . . . . . . . . . Time 53 | . . . . . . . . . . . . . . . . . . 53 . . . . . . . . . . . . . . . . Total Part Build Rating 6 | . . . . . . . . . . . . . . . . . . 6 . . . . . . . . . . . . . . . . Parts Repaired 2 | . . . . . 2 . . . . . . . . . . . . . . . . . . . . . . . . . . . . . Time 124 | . . . . . 124 . . . . . . . . . . . . . . . . . . . . . . . . . . . . . Parts Recycled . | . . . . . . . . . . . . . . . . . . . . . . . . . . . . . . . . . . . Recycled Matter . | . . . . . . . . . . . . . . . . . . . . . . . . . . . . . . . . . . . Retrieved Matter . | . . . . . . . . . . . . . . . . . . . . . . . . . . . . . . . . . . . Retrieved Components . | . . . . . . . . . . . . . . . . . . . . . . . . . . . . . . . . . . . Parts Scanalyzed 2 | . . . . . 1 . . . . . . . . . . . . . . . . . . . . . . . 1 . . . . . Part Schematics Acquired 1 | . . . . . . . . . . . . . . . . . . . . . . . . . . . . . 1 . . . . . Parts Damaged 1 | . . . . . . . . . . . . . . . . . . . . . . . . . . . . . 1 . . . . . Bothacking | -11 -10 -10 -10 -9 -8 -8 -7 -7 -7 -7 -6 -6 -6 -6 -6 -6 -6 -5 -5 -5 -5 -4 -4 -4 -4 -4 -3 -3 -3 -3 -2 -1 -1 -1 ------------ Run | Scr Mat Min Exi Min Mat Gar Fac Low Zio Dee Pro Fac Ext Cet Arc Hub Gar Fac Upp Upp Zhi Pro Fac Upp Upp War Pro Res Qua Sec Res Acc Com Ac0 Used RIF Installer . | . . . . . . . . . . . . . . . . . . . . . . . . . . . . . . . . . . . Robots Hacked 2 | . . . . . . . . . . . . . . . . . . . . . . . . . . . . 2 . . . . . . Non-combat . | . . . . . . . . . . . . . . . . . . . . . . . . . . . . . . . . . . . Combat 2 | . . . . . . . . . . . . . . . . . . . . . . . . . . . . 2 . . . . . . Robot Hacks Applied 2 | . . . . . . . . . . . . . . . . . . . . . . . . . . . . 2 . . . . . . parse_system 2 | . . . . . . . . . . . . . . . . . . . . . . . . . . . . 2 . . . . . . Relay Couplers Released 35 | . . . . . . 21 . . . . . . . . . . 11 . . . . . . . . . . . . . 3 . . . Machine Destruction 32 | . . . . . . 21 . . . . . . . . . . 11 . . . . . . . . . . . . . . . . . Programmers 3 | . . . . . . . . . . . . . . . . . . . . . . . . . . . . . . . 3 . . . Fabnet Peak Effective % . | . . . . . . . . . . . . . . . . . . . . . . . . . . . . . . . . . . . Robots Rewired 26 | . . . . . . . . . . . 2 . 18 . . . 2 . . . . . . . . 4 . . . . . . . . Allies Hacked . | . . . . . . . . . . . . . . . . . . . . . . . . . . . . . . . . . . . Hacks Repelled . | . . . . . . . . . . . . . . . . . . . . . . . . . . . . . . . . . . . Allies | -11 -10 -10 -10 -9 -8 -8 -7 -7 -7 -7 -6 -6 -6 -6 -6 -6 -6 -5 -5 -5 -5 -4 -4 -4 -4 -4 -3 -3 -3 -3 -2 -1 -1 -1 -------- Run | Scr Mat Min Exi Min Mat Gar Fac Low Zio Dee Pro Fac Ext Cet Arc Hub Gar Fac Upp Upp Zhi Pro Fac Upp Upp War Pro Res Qua Sec Res Acc Com Ac0 Total Allies 56 | . . 3 . 2 . . . . 7 . 2 . 28 5 . . 2 . . . . . . . . 4 . 3 . . . . . . Largest Group 16 | . . 3 3 2 1 . . . 7 7 2 1 16 7 5 1 2 . . . . . . . . 4 . 3 3 . . . . . Highest-Rated Group 602 | . . 40 40 46 31 . . . 324 324 49 29 473 602 529 89 296 . . . . . . . . 221 . 144 144 . . . . . Highest-Rated Ally 159 | . . 16 16 31 31 . . . 96 96 29 29 159 159 159 89 148 . . . . . . . . 65 . 48 48 . . . . . Warlord Squad Rendezvous 1 | . . . . . . . . . . . . . . . . . . . . . . . 1 . . . . . . . . . . . Infantry 1 | . . . . . . . . . . . . . . . . . . . . . . . 1 . . . . . . . . . . . Total Orders 10 | . . . 3 . . . . . . . . . . . . 2 . . . . . . . . . 3 . . . . . . . 2 STAY 5 | . . . 3 . . . . . . . . . . . . . . . . . . . . . . 2 . . . . . . . . FOLLOW 1 | . . . . . . . . . . . . . . . . . . . . . . . . . . 1 . . . . . . . . EXPLORE 4 | . . . . . . . . . . . . . . . . 2 . . . . . . . . . . . . . . . . . 2 Ally Attacks 543 | . . . 22 10 . . . . . 207 3 7 97 77 13 2 44 . 1 9 . . . . . 23 . . 28 . . . . . Total Damage 14238 | . . . 276 374 . . . . . 5088 89 77 1925 2453 596 46 1263 . 50 533 . . . . . 972 . . 496 . . . . . Kills 92 | . . . 2 5 . . . . . 20 2 . 26 17 2 . 7 . 1 1 . . . . . 5 . . 4 . . . . . Allies Corrupted 1 | . . . . . . . . . . . . . . . . . . . . . . . . . . 1 . . . . . . . . Allies Melted 4 | . . . . . . . . . . . . . . . . . . . . . . . . . . 3 . . . . 1 . . . Turrets Deployed 4 | . . . 1 1 . . . . . . . . . . . . . . 1 1 . . . . . . . . . . . . . . Intel | -11 -10 -10 -10 -9 -8 -8 -7 -7 -7 -7 -6 -6 -6 -6 -6 -6 -6 -5 -5 -5 -5 -4 -4 -4 -4 -4 -3 -3 -3 -3 -2 -1 -1 -1 ------- Run | Scr Mat Min Exi Min Mat Gar Fac Low Zio Dee Pro Fac Ext Cet Arc Hub Gar Fac Upp Upp Zhi Pro Fac Upp Upp War Pro Res Qua Sec Res Acc Com Ac0 Robot Analysis Total 6 | . . . . . 1 . . . . . . . . . . . . 1 . . 4 . . . . . . . . . . . . . Derelict Logs Recovered 11 | . . 1 . 1 . . . 1 1 . 1 . . . . . . . 2 . . 1 . 3 . . . . . . . . . . Drone Launches 10 | . . . . . . . . . . . . . . . . 4 . . . . . . . . . . . . . . . . . 6 Drone Recoveries 7 | . . . . . . . . . . . . . . . . 4 . . . . . . . . . . . . . . . . . 3 Exploration | -11 -10 -10 -10 -9 -8 -8 -7 -7 -7 -7 -6 -6 -6 -6 -6 -6 -6 -5 -5 -5 -5 -4 -4 -4 -4 -4 -3 -3 -3 -3 -2 -1 -1 -1 ------------- Run | Scr Mat Min Exi Min Mat Gar Fac Low Zio Dee Pro Fac Ext Cet Arc Hub Gar Fac Upp Upp Zhi Pro Fac Upp Upp War Pro Res Qua Sec Res Acc Com Ac0 Turns Passed 50616 | . 391 798 2572 403 1014 1695 694 150 3383 3111 1810 643 1897 486 773 1257 1579 527 1335 673 2311 1238 696 1881 1840 1225 446 1005 1618 1340 700 1705 8421 999 Spaces Moved 21714 | 1 156 313 1042 200 346 617 342 80 1386 1105 389 299 695 184 132 324 691 189 631 360 475 377 350 843 863 549 262 483 888 611 478 968 4746 339 Core . | . . . . . . . . . . . . . . . . . . . . . . . . . . . . . . . . . . . Treads 11483 | . 111 313 514 . 12 494 21 . 1302 663 . . . 70 132 264 . . . . . . . . . . . . 445 611 478 968 4746 339 Legs 9352 | 1 45 . 528 200 63 . . . . 442 389 299 695 114 . 60 691 189 631 360 475 377 350 843 863 549 262 483 443 . . . . . Wheels 879 | . . . . . 271 123 321 80 84 . . . . . . . . . . . . . . . . . . . . . . . . . Hover . | . . . . . . . . . . . . . . . . . . . . . . . . . . . . . . . . . . . Flight . | . . . . . . . . . . . . . . . . . . . . . . . . . . . . . . . . . . . Fastest Speed 120 | 120 120 240 120 190 120 195 145 160 145 166 132 132 183 183 160 160 170 172 175 175 125 125 120 174 120 120 120 120 125 138 138 138 138 143 Average Speed 168 | 120 173 240 211 190 188 229 156 160 239 217 188 188 183 205 220 208 171 172 175 175 174 174 148 174 132 120 120 128 135 141 138 138 139 143 Slowest Speed 320 | 120 240 240 240 190 243 240 318 160 246 246 285 189 189 320 240 240 172 175 175 175 175 175 174 174 174 120 120 182 181 145 215 138 220 143 Overloaded Moves . | . . . . . . . . . . . . . . . . . . . . . . . . . . . . . . . . . . . Propulsion Burnouts . | . . . . . . . . . . . . . . . . . . . . . . . . . . . . . . . . . . . Robots Hopped . | . . . . . . . . . . . . . . . . . . . . . . . . . . . . . . . . . . . Cave-ins Triggered . | . . . . . . . . . . . . . . . . . . . . . . . . . . . . . . . . . . . Teleports 1 | . . . . . . . . . . . . . . . . . . . . . . . . . . . . . . . . . 1 . Exploration Rate (%) 50 | 2 24 42 89 52 34 87 14 14 86 78 48 10 83 65 77 40 61 6 59 57 75 60 9 80 69 62 53 25 85 33 20 33 92 36 Regions Visited 34 Branch Regions 23 Pre-discovered Areas 7 | . . . 1 . . . . 1 1 . . . . . . . . . . . 3 . . 1 . . . . . . . . . . Known Exits Taken 11 | . . . . . 1 . 1 1 . . . . 1 . . 1 . 1 . . . . 1 1 . . 1 1 . 1 . . . . Unknown Exits Taken 21 | 1 1 1 1 1 . . . . 1 1 1 1 . 1 1 . . . 1 1 1 1 . . 1 1 . . 1 . 1 1 1 . Scrap Searched 17 | . . . . 1 . . . . 4 . 2 . . . . . . . 3 3 . . . 1 2 . 1 . . . . . . . Spaces Dug 149 | . . . . . . . 4 2 . . . . . . . . 20 . 38 . . 12 5 8 6 8 14 2 . 14 . 8 5 3 Terrain Destroyed 1006 | . . . 21 1 32 24 69 3 . 1 13 2 19 3 1 379 35 5 45 12 2 21 13 22 123 8 28 15 23 35 . 14 12 25 Melee . | . . . . . . . . . . . . . . . . . . . . . . . . . . . . . . . . . . . Projectile 415 | . . . 18 1 1 1 4 3 . 1 13 2 19 3 1 55 35 5 45 12 2 21 13 22 8 8 28 15 23 20 . 14 11 11 AOE 573 | . . . . . 31 23 65 . . . . . . . . 324 . . . . . . . . 115 . . . . 15 . . . . Terrain Rammed 1 | . . . . . . . . . . . . . . . . . . . . . . . . . . . . . . . . . 1 . Walls Destroyed 1 | . . . . . . . . . . . . . . . . . . . . . . . . . . . . . . . . . 1 . Machines Disabled . | . . . . . . . . . . . . . . . . . . . . . . . . . . . . . . . . . . . Actions | -11 -10 -10 -10 -9 -8 -8 -7 -7 -7 -7 -6 -6 -6 -6 -6 -6 -6 -5 -5 -5 -5 -4 -4 -4 -4 -4 -3 -3 -3 -3 -2 -1 -1 -1 --------- Run | Scr Mat Min Exi Min Mat Gar Fac Low Zio Dee Pro Fac Ext Cet Arc Hub Gar Fac Upp Upp Zhi Pro Fac Upp Upp War Pro Res Qua Sec Res Acc Com Ac0 Total 33503 | . 228 341 1289 218 606 762 445 94 1448 1764 1401 359 1216 278 597 726 973 381 811 379 1834 906 457 1209 1543 1020 335 804 1241 1034 517 1335 6381 571 Wait 8244 | . 11 12 116 13 136 12 9 3 15 534 914 42 256 70 410 266 118 172 145 2 1171 438 42 336 613 367 45 212 216 132 3 145 1227 41 Move 21678 | . 155 312 1041 199 345 616 341 79 1385 1104 388 298 694 183 131 323 688 188 630 359 474 376 349 842 862 548 261 482 887 610 477 967 4745 339 Hop . | . . . . . . . . . . . . . . . . . . . . . . . . . . . . . . . . . . . Pick Up 317 | . 15 3 15 . 18 14 12 1 8 15 8 1 6 2 9 12 3 1 3 1 24 19 7 1 17 5 . 11 17 20 2 7 34 6 Fast Attach 185 | . 6 . 10 . 13 1 4 . 7 14 . 3 3 4 9 3 2 3 . . 12 3 3 . 1 6 . 8 11 16 10 6 22 5 Attach 147 | . 2 1 7 . 3 5 10 2 5 14 3 . 2 1 4 5 . . 1 1 13 2 3 1 5 . . 3 7 7 3 4 16 17 Detach 60 | . 1 . 2 . . . 4 . 5 9 . 1 . 1 1 . . . . . 7 . 1 . 2 1 . 1 1 1 1 3 9 9 Swap 117 | . 1 1 4 2 13 5 5 . 2 2 . . 1 . 1 3 3 . . . 2 3 6 . . 1 . 2 5 9 . 7 18 21 Drop 526 | . 8 . 20 1 16 13 16 2 17 33 13 4 14 8 20 18 11 10 5 3 52 33 9 4 21 7 . 24 36 36 9 7 49 7 Fire 1783 | . 29 11 41 2 62 70 40 7 4 38 38 10 61 9 12 96 74 7 27 13 43 32 35 25 22 53 29 60 61 203 12 187 244 126 Melee 70 | . . . 33 . . . . . . 1 . . . . . . . . . . 36 . . . . . . . . . . . . . Ram 1 | . . . . . . . . . . . . . . . . . . . . . . . . . . . . . . . . . 1 . Kick 5 | . . . . 1 . . . . . . . . 1 . . . . . . . . . 2 . . . . 1 . . . . . . Crush 17 | . . 1 . . . . . . . . . . . . . . . . . . . . . . . . . . . . . 2 14 . Escape Stasis 110 | . . . . . . 26 4 . . . . . 30 . . . 50 . . . . . . . . . . . . . . . . . Rewire 243 | . . . . . . . . . . . 37 . 148 . . . 24 . . . . . . . . 32 . . . . . . 2 . Trap . | . . . . . . . . . . . . . . . . . . . . . . . . . . . . . . . . . . . Miscellaneous . | . . . . . . . . . . . . . . . . . . . . . . . . . . . . . . . . . . . Route ------- -11/Scrapyard -10/Materials -10/Mines (discovered 2 exits: [*Mat] / *Exi) -10/Exiles -9/Mines -8/Materials (discovered 3 exits: *Fac x2 / Gar) -8/Garrison (discovered 2 exits: *Fac x2) -7/Factory (discovered 2 exits: *Low x2) -7/Lower Caves -7/Zion (discovered 2 exits: [*Dee] / [*Pro]) -7/Deep Caves -6/Proximity Caves -6/Factory (discovered 3 exits: Fac / [*Low] / *Ext) -6/Extension (discovered 2 exits: *Fac / *Cet) -6/Cetus (discovered 2 exits: *Fac / *Arc) -6/Archives (discovered 2 exits: *Fac / *Hub) -6/Hub_04(d) (discovered 3 exits: *Fac x2 / Gar) -6/Garrison (discovered 3 exits: *Fac x3) -5/Factory (discovered 2 exits: *Upp x2) -5/Upper Caves -5/Upper Caves -5/Zhirov -4/Proximity Caves -4/Factory (discovered 5 exits: Res x4 / *Upp) -4/Upper Caves -4/Upper Caves -4/Warlord -3/Proximity Caves -3/Research (discovered 3 exits: *Res x2 / *Qua) -3/Quarantine (discovered 2 exits: *Res / *Sec) -3/Section 7 -2/Research (discovered 2 exits: *Acc / [*Tes]) -1/Access -1/Command (discovered 3 exits: [*Sur x2] / [*Ac0]) -1/Access_0 History --------- Turn | Location | Event 1 | -11/Scrapyard | Discovered new exit (range 0) 1 | -11/Scrapyard | Entered Materials 36 | -10/Materials | Discovered new exit (range 15) 312 | -10/Materials | Build established: Mutant 392 | -10/Materials | Entered Mines 629 | -10/Mines | Discovered new exit (range 6) 759 | -10/Mines | Learned location of 1 exit from Materials 955 | -10/Mines | Deemed a non-threat by the Exiles lab entrance 1096 | -10/Mines | Assisted by bots powering up and referring to "LRC-V3" 1178 | -10/Mines | Discovered new exit (range 5) 1190 | -10/Mines | Entered Exiles 1190 | -10/Exiles | Accompanied by 3 allies 1250 | -10/Exiles | Met 8R-AWN 1291 | -10/Exiles | Met EX-HEX 1358 | -10/Exiles | Met EX-BIN 1394 | -10/Exiles | Aligned with FarCom system 1397 | -10/Exiles | Given EX-Vault access code 1454 | -10/Exiles | Opened EX-Vault 1468 | -10/Exiles | Found Deploy-a-Sentry 1471 | -10/Exiles | Found Deploy-a-Sentry 1480 | -10/Exiles | Found Longsword +1 1489 | -10/Exiles | Found Superbattery 1504 | -10/Exiles | Found Deploy-a-Sentry 1587 | -10/Exiles | Warned to stay clear of 0b10 Research branches 1663 | -10/Exiles | Met EX-DEC 1680 | -10/Exiles | Learned location of Zion (-7) 2012 | -10/Exiles | DAS Turret deployed 2381 | -10/Exiles | Attacked by the Exiles 2506 | -10/Exiles | Core integrity fell below 50% 2545 | -10/Exiles | Lost 5 parts (2n1u2w) 2576 | -10/Exiles | Destroyed 8R-AWN 2581 | -10/Exiles | Found Prototype Ballistic Gun 2581 | -10/Exiles | Identified 8R-AWN's Boregun 2604 | -10/Exiles | Found Prototype Device 2604 | -10/Exiles | Identified AS-neutralizer No. 17b 2609 | -10/Exiles | Found 8R-AWN's Boregun 2613 | -10/Exiles | Found Prototype Processor 2613 | -10/Exiles | Identified Exp. Targeting Computer 2716 | -10/Exiles | Core integrity fell below 20% 2871 | -10/Exiles | Build established: Scavenger-Mutant 2938 | -10/Exiles | Destroyed EX-BIN 2970 | -10/Exiles | Destroyed EX-DEC 2986 | -10/Exiles | Found Prototype Device 3005 | -10/Exiles | Found Prototype Processor 3015 | -10/Exiles | Found Deploy-a-Sentry 3046 | -10/Exiles | Destroyed EX-HEX 3737 | -10/Exiles | Discovered new exit (range 14) 3762 | -10/Exiles | Stole two prototypes: Longsword +1, Deploy-a-Sentry 3762 | -10/Exiles | Entered Mines 3764 | -9/Mines | DAS Turret deployed 4147 | -9/Mines | Discovered new exit (range 8) 4165 | -9/Mines | Entered Materials 4165 | -8/Materials | Accompanied by 1 ally 4165 | -8/Materials | Evolved 4 slots: Propulsion x1, Utility x3 4166 | -8/Materials | Identified exit to Factory 4170 | -8/Materials | Led the pair of lost Derelicts to an unsafe place 4574 | -8/Materials | Repaired Rnf. Fission Core 4644 | -8/Materials | Repaired Cmb. Antigrav System 4791 | -8/Materials | Destroyed 7 combat bots 4836 | -8/Materials | Discovered exit to Factory (range 18) 4852 | -8/Materials | Garrison activated, responded to threat 5077 | -8/Materials | Identified System Purifier 5173 | -8/Materials | Identified exit to Garrison 5179 | -8/Materials | Entered Garrison 5240 | -8/Garrison | Triggered checkpoint 5286 | -8/Garrison | Garrison Relay disabled 5329 | -8/Garrison | Build established: Mutant 5348 | -8/Garrison | Triggered checkpoint 5534 | -8/Garrison | Garrison Relay disabled 5602 | -8/Garrison | Discovered exit to Factory (range 10) 5722 | -8/Garrison | Triggered checkpoint 5775 | -8/Garrison | Build established: Scavenger-Mutant 5776 | -8/Garrison | Spotted B-75 Beast 5779 | -8/Garrison | Spotted B-75 Beast 5834 | -8/Garrison | Triggered checkpoint 5955 | -8/Garrison | Garrison Relay disabled 5991 | -8/Garrison | Garrison Relay disabled 6148 | -8/Garrison | Build established: Mutant 6192 | -8/Garrison | Triggered checkpoint 6244 | -8/Garrison | Triggered checkpoint 6686 | -8/Garrison | Triggered checkpoint 6737 | -8/Garrison | Garrison Relay disabled 6852 | -8/Garrison | Discovered exit to Factory (range 10) 6874 | -8/Garrison | Entered Factory 6874 | -7/Factory | Evolved 2 slots: Propulsion x1, Utility x1 6891 | -7/Factory | Found Scrap Engine 7310 | -7/Factory | Identified exit to Lower Caves 7382 | -7/Factory | Destroyed 11 combat bots 7568 | -7/Factory | Entered Lower Caves 7641 | -7/Lower Caves | Met a Warlord Commander 7642 | -7/Lower Caves | Learned location of Warlord (-4) 7647 | -7/Lower Caves | Found Encrypted Comm Array 7662 | -7/Lower Caves | A Derelict revealed a hidden shortcut to a safe place 7663 | -7/Lower Caves | Build established: Scavenger-Mutant 7690 | -7/Lower Caves | Learned 4 Factory zone layouts 7708 | -7/Lower Caves | Identified exit to Zion 7718 | -7/Lower Caves | Entered Zion 7791 | -7/Zion | System corruption cleaned by Quarantine Array 8123 | -7/Zion | Discovered new exit (range 16) 8754 | -7/Zion | Learned Factory trap positions 8858 | -7/Zion | Given A8's code to call for help 8988 | -7/Zion | Found Prototype Processor 8988 | -7/Zion | Identified Spectral Analyzer 8995 | -7/Zion | Found Prototype Processor 8995 | -7/Zion | Identified Exp. Terrain Scan Processor 9002 | -7/Zion | Found Prototype Processor 9002 | -7/Zion | Identified Exp. Target Analyzer 9049 | -7/Zion | Found Spectral Analyzer 9579 | -7/Zion | Gained Derelict followers 11056 | -7/Zion | Enhanced Grunt warped into view, answering call for help 11065 | -7/Zion | Enhanced Grunt warped into view, answering call for help 11084 | -7/Zion | Discovered new exit (range 3) 11084 | -7/Zion | Saw the warning signs outside the Deep Caves entrance 11101 | -7/Zion | Entered Deep Caves 11101 | -7/Deep Caves | Accompanied by 7 allies 11489 | -7/Deep Caves | Z-Facility disabled 11498 | -7/Deep Caves | Attacked by Z-Imprinter 11501 | -7/Deep Caves | Allies destroyed Z-Imprinter 11797 | -7/Deep Caves | Found Prototype Protection 11797 | -7/Deep Caves | Identified Zio. Weapon Casing 11869 | -7/Deep Caves | Found Prototype Protection 11889 | -7/Deep Caves | Identified Zio. Heavy Carapace 12600 | -7/Deep Caves | Spotted as-57256 12607 | -7/Deep Caves | Exposed GOLEM chamber 12632 | -7/Deep Caves | Destroyed as-57256 12681 | -7/Deep Caves | Triggered Deep Caves wall 12712 | -7/Deep Caves | Spotted AS-46364 12714 | -7/Deep Caves | Spotted AS-32273 12716 | -7/Deep Caves | Allies destroyed AS-46364 12729 | -7/Deep Caves | Destroyed AS-32273 12860 | -7/Deep Caves | Found GOLEM Unit 13305 | -7/Deep Caves | Found GOLEM Unit 13310 | -7/Deep Caves | Found GOLEM Unit 13511 | -7/Deep Caves | Found Zio. Weapon Casing 14029 | -7/Deep Caves | Discovered new exit (range 7) 14212 | -7/Deep Caves | Entered Proximity Caves 14615 | -6/Proximity Caves | Spotted B-75 Beast 14694 | -6/Proximity Caves | Core integrity fell below 50% 14733 | -6/Proximity Caves | Acquired the password to a Derelict Tinkerer's latest research 14750 | -6/Proximity Caves | Found Prototype Special Weapon 14788 | -6/Proximity Caves | Learned 8 Factory zone layouts 14897 | -6/Proximity Caves | Found Alien Artifact 14959 | -6/Proximity Caves | Caught by Unaware searching for contraband prototypes 14997 | -6/Proximity Caves | Caught by Unaware searching for contraband prototypes 15486 | -6/Proximity Caves | Attracted the attention of an 0b10 outpost 15533 | -6/Proximity Caves | Discovered new exit (range 9) 15920 | -6/Proximity Caves | Build established: Golem 16022 | -6/Proximity Caves | Entered Factory 16022 | -6/Factory | Accompanied by 1 ally 16022 | -6/Factory | Evolved 2 slots: Power x1, Utility x1 16023 | -6/Factory | Identified exit to Factory 16024 | -6/Factory | Loaded intel: 81 trap records 16498 | -6/Factory | Discovered new exit (range 8) 16658 | -6/Factory | Discovered new exit (range 6) 16665 | -6/Factory | Entered Extension 16665 | -6/Extension | Accompanied by 1 ally 16744 | -6/Extension | Rescued a captive Derelict 16746 | -6/Extension | Rescued a captive Derelict 16762 | -6/Extension | Rescued a captive Derelict 16763 | -6/Extension | Rescued a captive Derelict 16789 | -6/Extension | Rescued a captive Derelict 16877 | -6/Extension | Rescued a captive Derelict 16878 | -6/Extension | Rescued a captive Derelict 17030 | -6/Extension | Rescued a captive Derelict 17030 | -6/Extension | Rescued a captive Derelict 17154 | -6/Extension | Identified exit to Cetus 17168 | -6/Extension | Build established: Commander-Golem 17553 | -6/Extension | Spotted B-75 Beast 17564 | -6/Extension | Allies destroyed B-75 Beast 17577 | -6/Extension | Spotted B-75 Beast 17599 | -6/Extension | Destroyed B-75 Beast 17804 | -6/Extension | Energy Cycler disabled 17804 | -6/Extension | Rescued a captive Derelict 17809 | -6/Extension | Rescued A7 17868 | -6/Extension | Build established: Golem 18231 | -6/Extension | Build established: Commander-Golem 18310 | -6/Extension | Discovered exit to Factory (range 10) 18562 | -6/Extension | Entered Cetus 18562 | -6/Cetus | Accompanied by 5 allies (A7) 18567 | -6/Cetus | Acquired a Cetus Manufacturing Module code from A7 18586 | -6/Cetus | Spotted Cetus Guard 18586 | -6/Cetus | Spotted Cetus Guard 18589 | -6/Cetus | Spotted Cetus Guard 18592 | -6/Cetus | Spotted Cetus Guard 18596 | -6/Cetus | Allies destroyed Cetus Guard 18597 | -6/Cetus | Allies destroyed Cetus Guard 18600 | -6/Cetus | Destroyed Cetus Guard 18607 | -6/Cetus | Allies destroyed Cetus Guard 18682 | -6/Cetus | Started Cetus Manufacturing Module 18698 | -6/Cetus | Escorted A7 to Cetus Mainframe 18707 | -6/Cetus | Manufactured an Enhanced Grunt 18717 | -6/Cetus | Discovered new exit (range 15) 18732 | -6/Cetus | Manufactured an Enhanced Grunt 18757 | -6/Cetus | Manufactured an Enhanced Grunt 18782 | -6/Cetus | Manufactured an Enhanced Grunt 18807 | -6/Cetus | Manufactured an Enhanced Grunt 18833 | -6/Cetus | Spotted Cetus Guard 18834 | -6/Cetus | Spotted Cetus Guard 18837 | -6/Cetus | Spotted Cetus Guard 18839 | -6/Cetus | Spotted Cetus Guard 18849 | -6/Cetus | Allies destroyed Cetus Guard 18851 | -6/Cetus | Discovered exit to Factory (range 16) 18854 | -6/Cetus | Allies destroyed Cetus Guard 18857 | -6/Cetus | Allies destroyed Cetus Guard 18859 | -6/Cetus | Allies destroyed Cetus Guard 18873 | -6/Cetus | Met Revision 17 19048 | -6/Cetus | Entered Archives 19048 | -6/Archives | Accompanied by 5 allies (A7) 19053 | -6/Archives | Received a hacking code to weaken MAIN.C 19141 | -6/Archives | Discovered exit to Factory (range 14) 19165 | -6/Archives | Build established: Scavenger-Golem 19397 | -6/Archives | Found Prototype Device 19397 | -6/Archives | Identified Exp. Thermal Shield 19730 | -6/Archives | Discovered new exit (range 16) 19773 | -6/Archives | Unable to access archive contents 19821 | -6/Archives | Entered Hub_04(d) 19821 | -6/Hub_04(d) | Accompanied by 1 ally 19985 | -6/Hub_04(d) | Discovered exit to Factory (range 16) 20109 | -6/Hub_04(d) | Discovered exit to Factory (range 15) 20397 | -6/Hub_04(d) | Identified exit to Garrison 20416 | -6/Hub_04(d) | Garrison activated, responded to threat 20448 | -6/Hub_04(d) | Build established: Golem 20758 | -6/Hub_04(d) | Network Hub disabled 20758 | -6/Hub_04(d) | Network Hub disabled 20782 | -6/Hub_04(d) | Spotted Lightning 20783 | -6/Hub_04(d) | Spotted Lightning 20783 | -6/Hub_04(d) | Spotted Lightning 20798 | -6/Hub_04(d) | System corruption reached 10% 20810 | -6/Hub_04(d) | Destroyed Lightning 20837 | -6/Hub_04(d) | Destroyed Lightning 20854 | -6/Hub_04(d) | Destroyed Lightning 20891 | -6/Hub_04(d) | Found Prototype Device 20891 | -6/Hub_04(d) | Identified Exp. Phase Shifter 20936 | -6/Hub_04(d) | Found Prototype Energy Cannon 20945 | -6/Hub_04(d) | Found Prototype Energy Cannon 21078 | -6/Hub_04(d) | Entered Garrison 21188 | -6/Garrison | Build established: Scavenger-Golem 21226 | -6/Garrison | Spotted B-75 Beast 21235 | -6/Garrison | Destroyed B-75 Beast 21289 | -6/Garrison | Destroyed 10 combat bots 21312 | -6/Garrison | Triggered checkpoint 21356 | -6/Garrison | Garrison Relay disabled 21496 | -6/Garrison | Discovered exit to Factory (range 10) 21497 | -6/Garrison | Spotted B-75 Beast 21504 | -6/Garrison | Spotted B-75 Beast 21537 | -6/Garrison | Destroyed B-75 Beast 21627 | -6/Garrison | Destroyed B-75 Beast 21675 | -6/Garrison | Rewired B-90 Cyclops 21694 | -6/Garrison | Rewired B-90 Cyclops 21746 | -6/Garrison | Triggered checkpoint 21776 | -6/Garrison | Garrison Relay disabled 21930 | -6/Garrison | Triggered checkpoint 21958 | -6/Garrison | Triggered checkpoint 21990 | -6/Garrison | Triggered checkpoint 22058 | -6/Garrison | Discovered exit to Factory (range 13) 22203 | -6/Garrison | Garrison Relay disabled 22208 | -6/Garrison | Triggered checkpoint 22330 | -6/Garrison | Attempted to access garrison exit controls, blocked by remote lockdown 22350 | -6/Garrison | Destroyed Cyclops 5b 22354 | -6/Garrison | Destroyed Cyclops 5a 22360 | -6/Garrison | Found Quantum Capacitor 22512 | -6/Garrison | Attempted to access garrison exit controls, blocked by remote lockdown 22638 | -6/Garrison | Discovered exit to Factory (range 12) 22657 | -6/Garrison | Entered Factory 22657 | -5/Factory | Evolved 2 slots: Utility x2 22887 | -5/Factory | Identified exit to Upper Caves 22998 | -5/Factory | Fabricated Imp. Transmission Jammer (x1) 23184 | -5/Factory | Entered Upper Caves 23184 | -5/Upper Caves | Spotted XT-8Q3(f) 23185 | -5/Upper Caves | Encountered a Master Thief 23185 | -5/Upper Caves | Longsword +1 stolen by Master Thief 23186 | -5/Upper Caves | DAS Turret deployed 23186 | -5/Upper Caves | Allies destroyed XT-8Q3(f) 23557 | -5/Upper Caves | Spotted B-75 Beast 24378 | -5/Upper Caves | Learned Factory terminal intel 24420 | -5/Upper Caves | Discovered new exit (range 12) 24426 | -5/Upper Caves | Encountered a Warlord checkpoint 24448 | -5/Upper Caves | Learned Factory emergency access door positions 24519 | -5/Upper Caves | Entered another Upper Caves area 24519 | -5/Upper Caves | Spotted 58-JTG(f) 24519 | -5/Upper Caves | Spotted 8D-VFH(f) 24520 | -5/Upper Caves | Encountered a Master Thief 24520 | -5/Upper Caves | Encountered a Master Thief 24520 | -5/Upper Caves | Longsword +1 stolen by Master Thief 24521 | -5/Upper Caves | DAS Turret deployed 24521 | -5/Upper Caves | Spotted PN-ZT9(f) 24522 | -5/Upper Caves | Encountered a Master Thief 24530 | -5/Upper Caves | Exp. Reaction Control System stolen by Master Thief 24536 | -5/Upper Caves | Allies destroyed 58-JTG(f) 24987 | -5/Upper Caves | Discovered new exit (range 12) 25192 | -5/Upper Caves | Entered Zhirov 25501 | -5/Zhirov | Build established: Golem 25610 | -5/Zhirov | Discovered new exit (range 4) 25733 | -5/Zhirov | Met Zhirov 25764 | -5/Zhirov | Learned location of Quarantine (-3) 25764 | -5/Zhirov | Learned location of Testing (-2) 25764 | -5/Zhirov | Learned location of Command (-1) 25782 | -5/Zhirov | Zhirov requested help retrieving the SGEMP Prototype 25812 | -5/Zhirov | Found Alien Artifact 25812 | -5/Zhirov | Identified Integrated Reactor 25812 | -5/Zhirov | Installed Integrated Reactor, increased core energy generation (+10) 25832 | -5/Zhirov | Found Alien Artifact 26196 | -5/Zhirov | Attacked by Zhirov 26297 | -5/Zhirov | Found Prototype Device 26297 | -5/Zhirov | Identified Exp. Transmission Jammer 26828 | -5/Zhirov | Destroyed Perun 26845 | -5/Zhirov | Found Adv. Powered Armor 26990 | -5/Zhirov | Identified Exp. Core Analyzer 27109 | -5/Zhirov | Destroyed Svarog 27109 | -5/Zhirov | Cloak Generator disabled 27133 | -5/Zhirov | Found Corrupted Adv. Powered Armor 27134 | -5/Zhirov | Zhirov detonated his lab 27137 | -5/Zhirov | Build established: Scavenger-Golem 27503 | -5/Zhirov | Entered Proximity Caves 27586 | -4/Proximity Caves | Learned 8 Research zone layouts 27730 | -4/Proximity Caves | Build established: Golem 27945 | -4/Proximity Caves | Spotted B-86 Titan 27957 | -4/Proximity Caves | Destroyed B-86 Titan 28090 | -4/Proximity Caves | Lost 3 parts (3u) 28126 | -4/Proximity Caves | Discovered new exit (range 14) 28741 | -4/Proximity Caves | Entered Factory 28741 | -4/Factory | Evolved 2 slots: Propulsion x1, Utility x1 28743 | -4/Factory | Loaded intel: 26 terminal locations 28768 | -4/Factory | Discovered new exit (range 7) 28965 | -4/Factory | Identified exit to Research 29120 | -4/Factory | Spotted B-86 Titan 29217 | -4/Factory | Found Prototype Device 29327 | -4/Factory | Joined by Warlord Infantry squad 29415 | -4/Factory | Identified exit to Upper Caves 29437 | -4/Factory | Entered Upper Caves 29437 | -4/Upper Caves | Spotted VP-1FG(f) 29437 | -4/Upper Caves | Spotted ML-YMN(f) 29438 | -4/Upper Caves | Encountered a Master Thief 29438 | -4/Upper Caves | Encountered a Master Thief 29442 | -4/Upper Caves | Alien Artifact stolen by Master Thief 29442 | -4/Upper Caves | Prototype Reactor stolen by Master Thief 29528 | -4/Upper Caves | Learned Research emergency access door positions 29664 | -4/Upper Caves | Learned location of Armory (-3) 29883 | -4/Upper Caves | Identified Active Sensor Suite 30189 | -4/Upper Caves | Build established: Skirmisher 30556 | -4/Upper Caves | Attracted the attention of an 0b10 checkpoint 31204 | -4/Upper Caves | Discovered new exit (range 6) 31210 | -4/Upper Caves | Spotted B-86 Titan 31316 | -4/Upper Caves | Identified exit to Upper Caves 31318 | -4/Upper Caves | Entered another Upper Caves area 31463 | -4/Upper Caves | Spotted B-86 Titan 31887 | -4/Upper Caves | Spotted QQ-0B0(f) 31889 | -4/Upper Caves | Encountered a Master Thief 31891 | -4/Upper Caves | Destroyed QQ-0B0(f) 31892 | -4/Upper Caves | Spotted L7-I5U(f) 31893 | -4/Upper Caves | Encountered a Master Thief 31893 | -4/Upper Caves | Spotted B8-N0X(f) 31894 | -4/Upper Caves | Encountered a Master Thief 31894 | -4/Upper Caves | Spotted 1G-48B(f) 31895 | -4/Upper Caves | Encountered a Master Thief 31895 | -4/Upper Caves | Destroyed 1G-48B(f) 31904 | -4/Upper Caves | Destroyed L7-I5U(f) 31912 | -4/Upper Caves | Exp. Transmission Jammer stolen by Master Thief 31919 | -4/Upper Caves | Destroyed B8-N0X(f) 32045 | -4/Upper Caves | Discovered new exit (range 6) 32491 | -4/Upper Caves | Build established: Golem 33158 | -4/Upper Caves | Entered Warlord 33489 | -4/Warlord | Met Warlord 33514 | -4/Warlord | Warlord's base attacked by MAIN.C 33528 | -4/Warlord | Found Prototype Device 33528 | -4/Warlord | Identified Exp. Focal Shield 33544 | -4/Warlord | Found Prototype Device 33544 | -4/Warlord | Identified Exp. Phase Shifter 33551 | -4/Warlord | Found Prototype Reactor 33551 | -4/Warlord | Identified Vortex Chain Reactor 33596 | -4/Warlord | Build established: Commander-Golem 33745 | -4/Warlord | Spotted B-86 Titan 33758 | -4/Warlord | Spotted B-90 Cyclops 33758 | -4/Warlord | Destroyed B-90 Cyclops 33864 | -4/Warlord | Warlord forces counterattacked 33883 | -4/Warlord | Spotted Striker 33892 | -4/Warlord | Destroyed Striker 33948 | -4/Warlord | Spotted Striker 33953 | -4/Warlord | Allies destroyed Striker 33957 | -4/Warlord | Build established: Golem 34144 | -4/Warlord | Spotted Striker 34145 | -4/Warlord | Spotted Executioner 34189 | -4/Warlord | Warlord base infiltrated, sounded retreat 34262 | -4/Warlord | Spotted B-90 Cyclops 34262 | -4/Warlord | Spotted Executioner 34267 | -4/Warlord | Spotted B-86 Titan 34327 | -4/Warlord | Spotted Striker 34360 | -4/Warlord | Discovered new exit (range 15) 34383 | -4/Warlord | Entered Proximity Caves 34787 | -3/Proximity Caves | Discovered exit to Research (range 20) 34829 | -3/Proximity Caves | Entered Research 34829 | -3/Research | Evolved 2 slots: Propulsion x1, Utility x1 34830 | -3/Research | Identified exit to Quarantine 34830 | -3/Research | Identified exit to Research 34831 | -3/Research | Identified exit to DSF 35029 | -3/Research | Revision forces began assault on 0b10 35066 | -3/Research | Met up with Revision 17++ 35096 | -3/Research | Destroyed 8 combat bots 35213 | -3/Research | Found Unknown Launcher 35222 | -3/Research | Spotted B-86 Titan 35230 | -3/Research | Destroyed B-86 Titan 35243 | -3/Research | Found Enh. Force Lance 35402 | -3/Research | Spotted B-86 Titan 35474 | -3/Research | Build established: Mutant 35528 | -3/Research | Discovered exit to Research (range 19) 35529 | -3/Research | Research terminal network offline 35620 | -3/Research | Fabricated L-61 Swordsman (x3) 35834 | -3/Research | Entered Quarantine 35834 | -3/Quarantine | Accompanied by 3 allies 35885 | -3/Quarantine | Cryocooling Duct disabled 35900 | -3/Quarantine | Ambient heat levels rising (+20) 35900 | -3/Quarantine | Non-combat units ordered to evacuate 36067 | -3/Quarantine | Spotted Alpha 7 36348 | -3/Quarantine | Found Alien Artifact 36705 | -3/Quarantine | Found Alien Artifact 36711 | -3/Quarantine | Found Alien Artifact 36719 | -3/Quarantine | Identified Dimensional Node Initializer 36719 | -3/Quarantine | Initialized slip node 36756 | -3/Quarantine | Found Alien Artifact 36761 | -3/Quarantine | Identified Core Reset Matrix 36761 | -3/Quarantine | Identified Transdimensional Reconstructor 36761 | -3/Quarantine | Identified Subatomic Replicator 36761 | -3/Quarantine | Identified Gamma Bomb Array 36761 | -3/Quarantine | Used Core Reset Matrix 36765 | -3/Quarantine | Detected hypermatrix surge 36765 | -3/Quarantine | Sensed 9 artifacts in vicinity 36794 | -3/Quarantine | Found Transdimensional Reconstructor 36917 | -3/Quarantine | Discovered exit to Research (range 5) 36966 | -3/Quarantine | Garrison activated, responded to threat 37036 | -3/Quarantine | Identified EMDS 37146 | -3/Quarantine | Spotted Fortress 37246 | -3/Quarantine | Discovered new exit (range 5) 37452 | -3/Quarantine | Entered Section 7 37453 | -3/Section 7 | Sensed 21 artifacts in vicinity 37529 | -3/Section 7 | Found Integrity Redistributor 37581 | -3/Section 7 | Spotted S7 Guard 37611 | -3/Section 7 | Destroyed S7 Guard 37619 | -3/Section 7 | Found Core Physics Calibrator 37627 | -3/Section 7 | Found Corrupted Prototype Protection 37627 | -3/Section 7 | Identified Hvy. Regenerative Plating 37632 | -3/Section 7 | System corruption reached 10% 37816 | -3/Section 7 | Found Integrity Redistributor 37842 | -3/Section 7 | Spotted B-86 Titan 37902 | -3/Section 7 | Found Integrity Redistributor 38033 | -3/Section 7 | Found Unknown Device 38033 | -3/Section 7 | Identified Quantum Capacitor 38059 | -3/Section 7 | Found Integrated Dissipator 38059 | -3/Section 7 | Installed Integrated Dissipator, increased core heat dissipation (+20) 38332 | -3/Section 7 | Build established: Alien-Mutant 38425 | -3/Section 7 | Destroyed 8 combat bots 38483 | -3/Section 7 | Spotted S7 Guard 38502 | -3/Section 7 | Found Core Regenerator 38528 | -3/Section 7 | Destroyed S7 Guard 38560 | -3/Section 7 | System corruption reached 30% 38565 | -3/Section 7 | Found Corrupted Hvy. Regenerative Plating 38702 | -3/Section 7 | First assault squad dispatched 38703 | -3/Section 7 | Build established: Scavenger-Mutant 38774 | -3/Section 7 | Discovered exit to Research (range 9) 38781 | -3/Section 7 | Destroyed 13 combat bots 38791 | -3/Section 7 | Used Integrity Redistributor, redistributed integrity from core (-250) 38792 | -3/Section 7 | Entered Research 38792 | -2/Research | Warlord forces began assault on 0b10 38792 | -2/Research | Evolved 2 slots: Power x1, Utility x1 38817 | -2/Research | Distinguished unit "Magnificent Bastards" dispatched to help 38817 | -2/Research | Distinguished unit "Department No. 42" dispatched to help 38835 | -2/Research | Met up with Warlord 38902 | -2/Research | Research machine network offline 39124 | -2/Research | Borebot progress halted 39149 | -2/Research | Discovered new exit (range 6) 39315 | -2/Research | Borebot progress halted 39356 | -2/Research | Spotted Striker 39416 | -2/Research | Discovered new exit (range 19) 39492 | -2/Research | Entered Access 39492 | -1/Access | Evolved 2 slots: Weapon x2 39596 | -1/Access | Garrison activated, responded to threat 40045 | -1/Access | Garrison activated, responded to threat 40242 | -1/Access | First assault squad dispatched 40410 | -1/Access | Destroyed 8 combat bots 40654 | -1/Access | Spotted B-99 Colossus 40962 | -1/Access | Found Unknown Launcher 40962 | -1/Access | Identified Fusion Bomb Launcher 41142 | -1/Access | Spotted B-99 Colossus 41189 | -1/Access | Discovered new exit (range 7) 41197 | -1/Access | Entered Command 41867 | -1/Command | System corruption reached 10% 41908 | -1/Command | Found Quantum Capacitor 41947 | -1/Command | First assault squad dispatched 42195 | -1/Command | Disengaged cave seal 42195 | -1/Command | Welcomed Warlord to Command 42479 | -1/Command | Build established: Hacker-Mutant 42494 | -1/Command | Disengaged cave seal 42494 | -1/Command | Derelicts emerged from the dark tunnel 42750 | -1/Command | Spotted M Guard 42751 | -1/Command | Spotted Combat Programmer 42753 | -1/Command | Spotted M Guard 42758 | -1/Command | Spotted Combat Programmer 42762 | -1/Command | Warlord commented on Warlord statues 42793 | -1/Command | Destroyed M Guard 42793 | -1/Command | All MAIN.C guards destroyed 42849 | -1/Command | Met MAIN.C 42850 | -1/Command | 0b10 Conduit disabled 42851 | -1/Command | Warlord shut down involuntarily 42860 | -1/Command | MAIN.C activated Command garrisons 42896 | -1/Command | Discovered new exit (range 29) 42896 | -1/Command | Discovered new exit (range 98) 42896 | -1/Command | Extracted map data and part IDs from MAIN.C's data core 42966 | -1/Command | Build established: Scavenger-Mutant 42972 | -1/Command | Spotted B-99 Colossus 43043 | -1/Command | Spotted B-99 Colossus 43115 | -1/Command | Found Exp. System Purifier 46125 | -1/Command | Found Multirail 46128 | -1/Command | Found Corrupted Multirail 46315 | -1/Command | Found Multirail 47754 | -1/Command | Found SHELL Armor 47832 | -1/Command | Attacked by Warlord forces 48090 | -1/Command | Found Exp. Powered Armor 48111 | -1/Command | Found Exp. Targeting Computer 48345 | -1/Command | Found Multirail 48375 | -1/Command | Found Multirail 48448 | -1/Command | Found Vortex Chain Reactor 48451 | -1/Command | Found Zero-point Reactor 48455 | -1/Command | Used Integrity Redistributor, redistributed integrity from core (-311) 48456 | -1/Command | Used Core Regenerator, restored core integrity (+400) 48737 | -1/Command | Build established: Scavenger-Tank 49610 | -1/Command | Warped through subspace to slip node 49610 | -1/Command | Discovered new exit (range 4) 49618 | -1/Command | Entered Access_0 49619 | -1/Access_0 | Sensed 4 artifacts in vicinity 49619 | -1/Access_0 | Met Architect 49647 | -1/Access_0 | Destroyed A8 49655 | -1/Access_0 | Architect warped through subspace 49718 | -1/Access_0 | Architect warped through subspace 49774 | -1/Access_0 | Architect warped through subspace 49829 | -1/Access_0 | Architect warped through subspace 49930 | -1/Access_0 | Architect warped through subspace 49939 | -1/Access_0 | Destroyed 8 combat bots 49966 | -1/Access_0 | A6 warped into view 49987 | -1/Access_0 | Used Integrity Redistributor, redistributed integrity from core (-498) 49988 | -1/Access_0 | Core integrity fell below 50% 49995 | -1/Access_0 | Destroyed A6 50010 | -1/Access_0 | Architect warped through subspace 50105 | -1/Access_0 | Subspace Access Node disabled 50122 | -1/Access_0 | Architect warped through subspace 50177 | -1/Access_0 | Subspace Access Node disabled 50210 | -1/Access_0 | Architect warped through subspace 50272 | -1/Access_0 | Architect warped through subspace 50349 | -1/Access_0 | Architect warped through subspace 50383 | -1/Access_0 | Found Exp. Phase Shifter 50422 | -1/Access_0 | A5 warped into view 50453 | -1/Access_0 | Core integrity fell below 20% 50456 | -1/Access_0 | Destroyed A5 50468 | -1/Access_0 | Architect warped through subspace 50554 | -1/Access_0 | Subspace Access Node disabled 50581 | -1/Access_0 | Subspace Access Node disabled 50617 | -1/Access_0 | Destroyed by Architect with Modified Sigix Sheargun Last Messages --------------- 50605_ Slug penetrates Architect. 50605_ Architect knocked back. 50605_ Penetrated by Quantum Shear. 50607_ Slug penetrates Architect. 50607_ Slug penetrates Earth. 50607_ Slug penetrates Architect. 50607_ Architect knocked back. 50608_ Penetrated by Quantum Shear. 50610_ Architect suffers critical hit (Destroy). 50610_ Slug penetrates Architect. 50610_ Architect knocked back. 50610_ Quantum Shear penetrates Wall. 50612_ System corrupted: Multirail jammed. 50615_ Slug penetrates Architect. 50615_ Slug penetrates Earth. 50615_ Slug penetrates Architect. 50615_ Slug penetrates Earth. 50617_ Slug penetrates Architect. 50617_ Slug penetrates Wall. 50617_ Penetrated by Quantum Shear. Map ----- +----------------------------------------------------+ | ##????????#?? ? ?? ?? ?##???????#?### ######### | | ?##? ? ? #?? ?? ?? ? #??#?####???#?##?########? | | ####??# ?? ? ?#?##? ??#?# #?#??????### ######### | | #?####?? ? #?#???? #?#? ##??##??#### #?####### | | ####?#?#?#???? ??#? #??# ##?##??#??#?# ? ##### | | ###???#?#?? ?? ####?? ## "#? #???#?####?## ####? | | ####??#?##?? ????##?# # ""# ##????####### ?#### | | ##??####??#??????#?#?# """" "#??#?###?### ##### | | ###?##?????##? ???#### "" ? ? ?? ? | | ##?##?##?##?#??######"!!! "? ?? ?? ? #### | | #######? #?? ?##! = ;"#"? ?#?????#?########## | | ?##### ? ??##! ]* ;###? ##??????#?########? | | ??##?#? ? ? ??? ? ?#!= ;""# ????#??????######### | | ? ? ?? ??##; ; ##?##??##?#?###???#?### | | ??? #?####????##;; ;;##?#??#???????## ? | | ##?#?## ###??#??#?#;; ;; #???##??? #?#?# #?##### | | ?##??## ?##?????###; ;#####??#? ??#?## ?#?#### | | ??### ??#####?### ; ;; ###?? ?###?#####?# | | #?##? #?##??### ;% ;;####????? #??#?####? | | ###?# #?#?#### ;%%;0% ; #??#??? ? ???#???## | | ##### ####?## % ####???? ???????#???# | | ## #### ;###?###?#? ?????##? | | # #;;; ;; ; ##???### ?? ?#??#?# | | #### ;; ;;; ;###???##?#???????##?# | | ## ; ; ; ;#????#?#???????##?? | | ## ""# ;;;@ ; ;#?? ?#?##???????#?# | | """ "## " # #; ;;;#"? ?????##???##??# | | "" ""#"# ### ;; "" ? ??#??????? # | | """#"#### ### #;; "" #?????????? | | #??## ### ######;;;; "###??????????? | | ##### ?###??#??# ;;; ##?#?#????????? | | "#" ##?#?# ??????#?##;;; ;;???#????????? | | " ######??#### ##??#??# # ;###??????????? | | " "#####??###??# ?##?????# ; ##????????????? | | #?# ??#?##???? ###?#????#; ;#????????????? | | ##? ?####?#?#? #???????#?## ##????????????? | | ?????#??##? #???#????#??? #?????????????? | | ? ????????? ?#?#????###???? ??????????????? | | " #?# ? ???????#?? ?????#??????????????????? | | # ###?? ?? ????#? ? ?????????????????????? | | # ##??#?##?# ? ?#?#???????#??????????????????? | | # ###??#?#???#? ?###???## ?#???????????????????? | | ##????###???????#?# ???????????????????? ?????? | | ##?#?#??????#??????????????????????????? ???? | | #???#???##??#?#?????????????????????????? ??? | | ####????#???????????????????????????????????? ?? | | ??#?????#????#????????????????????????????????? | | ????????????????????????????????????????????????# | | ??????#?????????????????????????????????????????# | | ???????????????????????????????????????????????## | +----------------------------------------------------+ Best States ------------- Heat Dissipation 110 Energy Generation 96 Energy Capacity 2550 Matter Stores 300 Matter Capacity 300 Sight Range 24 Robot Scan Range 20 Terrain Scan Range 24 Terrain Scan Density 210 Jamming Range 22 Power Amplification 40 Additional Mass Support 20 EM Shielding 4 Armor Coverage 2400 Resistance: KI 30 Resistance: TH 15 Resistance: EX 15 Resistance: EM 15 Resistance: I 15 Resistance: S 15 Resistance: P 15 Propulsion Shielding 90 Weapon Shielding 100 Weapon Cycling 25 Phase Shifting 20 Evasion (%) 63 Targeting Accuracy 24 Core Analysis 8 Armor Integrity Analysis 40 Recoil Reduction 6 Matter Filtering 50 Particle Charging 25 Salvage Targeting 4 Offensive Hacking 34 Defensive Hacking 26 Authchip Count 2 Item Schematics ----------------- Cmb. Linear Gravjet | -3/Quarantine | Scanalyzed Robot Schematics ------------------ None Fabricated ------------ Imp. Transmission Jammer | x1 | -5/Factory | Preloaded L-61 Swordsman | x3 | -3/Research | Preloaded Alien Tech Used ----------------- Integrated Reactor Dimensional Node Initializer Core Reset Matrix Integrated Dissipator Integrity Redistributor Core Physics Calibrator Core Regenerator Transdimensional Reconstructor Achievements -------------- Revolutionary Research Shocking Conclusion Challenges ------------ None Game ------ Seed MicroAssembledThermoblaster Manual? 0 Play Time 08:20:51 Cumulative 440.6 hours Start 2023.01.09 @ 01:42:00 End 2023.01.14 @ 13:20:45 Sessions 21 Manual Loads 0 Difficulty Rogue Special Mode None Game No. 427 Rogue 427 Adventurer 0 Explorer 0 Win Type - Total 32 Types 18/3/4/1/2/1/3/0/0 Lore% 92 Gallery% 94 Achievement% 82 Wizard Run 0 Options --------- ASCII 0 Keyboard 0 Movement Arrows Keybinds 0 Fullscreen 2 Font 24/Smallcaps Map View 76x50 Tactical HUD 1 Map Filters NONE Filters NONE Steam 1 RUN: 18c0f2e4-dabf-4271-bd12-01f23caca17e